{"text_format":"1","workbook":"xlsx","n_sheets":3,"sheets":["Compte rendu","Data","CRITERES"],"not_rendered":{"charts":0,"images":0,"macros":1,"external_links":0,"defined_names":0,"comments":0,"pivot_tables":1},"unopened":[],"bounds":{"document_bytes":16777216,"sheet_cells":100000,"rows_first":2000,"rows_last":500,"rows_between":2000,"halvings":0,"cell_chars":16384,"cell_head_chars":4096},"cells_cut":0,"cells_raw":0,"read":"whole","date_system":"1900"}

{"sheet":"Compte rendu","index":0,"n_rows":14,"n_cols":36,"rows_kept":14,"cut":false,"hidden":false,"merged":[[6,31,6,32],[7,31,7,32],[2,0,2,35],[3,0,3,35],[6,27,6,28],[7,27,7,28],[6,29,6,30],[7,29,7,30],[6,23,6,24],[7,23,7,24],[6,25,6,26],[7,25,7,26],[6,17,6,18],[7,17,7,18],[6,19,6,20],[7,19,7,20],[6,21,6,22],[7,21,7,22],[6,11,6,12],[7,11,7,12],[6,13,6,14],[7,13,7,14],[0,0,0,1],[6,9,6,10],[7,9,7,10],[6,15,6,16],[7,15,7,16]]}
[{"$f":" \"Edité le \" & TEXT(TODAY(),\"jj/mm/aaaa\" )","v":"Edité le 28/09/2015"}]
[]
[{"$f":"IF(Data!BU2=\"\",\"\",Data!BU2)","v":"Edition des consommations"}]
[{"$f":" TEXT(DATE(MID(CRITERES!D7,1,4),MID(CRITERES!D7,5,2),MID(CRITERES!D7,7,2)),\"jj/mm/aaaa\" ) & \" au \" & TEXT(DATE(MID(CRITERES!D8,1,4),MID(CRITERES!D8,5,2),MID(CRITERES!D8,7,2)),\"jj/mm/aaaa\" )","v":"01/01/2015 au 30/06/2015"}]
[]
[]
[null,null,null,null,null,null,null,null,null,{"$f":"IF(Data!AK2=\"\",\"\",\"Période \" & Data!AK2)","v":"Période 1501"},null,{"$f":"IF(Data!AN2=\"\",\"\",\"Période \" & Data!AN2)","v":"Période 1502"},null,{"$f":"IF(Data!AQ2=\"\",\"\",\"Période \" & Data!AQ2)","v":"Période 1503"},null,{"$f":"IF(Data!AT2=\"\",\"\",\"Période \" & Data!AT2)","v":"Période 1504"},null,{"$f":"IF(Data!AW2=\"\",\"\",\"Période \" & Data!AW2)","v":"Période 1505"},null,{"$f":"IF(Data!AZ2=\"\",\"\",\"Période \" & Data!AZ2)","v":"Période 1506"},null,{"$f":"IF(Data!BC2=\"\",\"\",\"Période \" & Data!BC2)","v":""},null,{"$f":"IF(Data!BF2=\"\",\"\",\"Période \" & Data!BF2)","v":""},null,{"$f":"IF(Data!BI2=\"\",\"\",\"Période \" & Data!BI2)","v":""},null,{"$f":"IF(Data!BL2=\"\",\"\",\"Période \" & Data!BL2)","v":""},null,{"$f":"IF(Data!BO2=\"\",\"\",\"Période \" & Data!BO2)","v":""},null,{"$f":"IF(Data!BR2=\"\",\"\",\"Période \" & Data!BR2)","v":""}]
[null,null,null,null,null,null,null,null,null,{"$f":"IF(Data!AL2=\"\",\"\",Data!AL2 & \" au \"&Data!AM2)","v":"01/01/2015 au 31/01/2015"},null,{"$f":"IF(Data!AO2=\"\",\"\",Data!AO2 & \" au \" &  Data!AP2)","v":"01/02/2015 au 28/02/2015"},null,{"$f":"IF(Data!AR2=\"\",\"\",Data!AR2 & \" au \" & Data!AS2)","v":"01/03/2015 au 31/03/2015"},null,{"$f":"IF(Data!AU2=\"\",\"\",Data!AU2 & \" au \" & Data!AV2)","v":"01/04/2015 au 30/04/2015"},null,{"$f":"IF(Data!AX2=\"\",\"\",Data!AX2 & \" au \" & Data!AY2)","v":"01/05/2015 au 31/05/2015"},null,{"$f":"IF(Data!BA2=\"\",\"\",Data!BA2 & \" au \" & Data!BB2)","v":"01/06/2015 au 30/06/2015"},null,{"$f":"IF(Data!BD2=\"\",\"\",Data!BD2 & \" au \" & Data!BE2)","v":""},null,{"$f":"IF(Data!BG2=\"\",\"\",Data!BG2 & \" au \" & Data!BH2)","v":""},null,{"$f":"IF(Data!BJ2=\"\",\"\",Data!BJ2 & \" au \" & Data!BK2)","v":""},null,{"$f":"IF(Data!BM2=\"\",\"\",Data!BM2 & \" au \" & Data!BN2)","v":""},null,{"$f":"IF(Data!BP2=\"\",\"\",Data!BP2 & \" au \" & Data!BQ2)","v":""},null,{"$f":"IF(Data!BS2=\"\",\"\",Data!BS2 & \" au \" & Data!BT2)","v":""}]
[" ETABLISSEMENT "," DEPOT "," ARTICLE ","Rupture 4","Rupture 5","Rupture 6","Rupture 7","Rupture 8","Rupture 9"," Quantité "," Ecart ","  Quantité  ","  Ecart  ","   Quantité   ","   Ecart   ","    Quantité    ","    Ecart    ","     Quantité     ","     Ecart     ","      Quantité      ","      Ecart      ","       Quantité       ","       Ecart       ","        Quantité        ","        Ecart        ","         Quantité         ","         Ecart         ","          Quantité          ","          Ecart          ","           Quantité           ","           Ecart           ","            Quantité            ","            Ecart            "," Total "," Moyenne "," Ecart type "]
["QUAL Ets QUALIAC","DEPS01 Depot stocké 01","ARTS01 Article ARTS01","(vide)","(vide)","(vide)","(vide)","(vide)","(vide)",500,0,290,0,150,0,600,0,340,0,760,0,0,0,0,0,0,0,0,0,0,0,0,0,2640,440,484.73]
[null,null,"ARTS02 Article ARTS02","(vide)","(vide)","(vide)","(vide)","(vide)","(vide)",450,0,360,0,190,0,366,0,119,0,190,0,0,0,0,0,0,0,0,0,0,0,0,0,1675,279.17,303.43]
[null,null,"ARTS03 Article ARTS03","(vide)","(vide)","(vide)","(vide)","(vide)","(vide)",166,0,240,0,240,0,190,0,360,0,260,0,0,0,0,0,0,0,0,0,0,0,0,0,1456,242.67,250.35]
[null,null,"ARTS04 Article ARTS04","(vide)","(vide)","(vide)","(vide)","(vide)","(vide)",600,0,400,0,350,0,346,0,560,0,314,0,0,0,0,0,0,0,0,0,0,0,0,0,2570,428.33,442.42]
["Total général",null,null,null,null,null,null,null,null,1716,0,1290,0,930,0,1502,0,1379,0,1524,0,0,0,0,0,0,0,0,0,0,0,0,0,8341,1390.17,1480.93]

{"sheet":"Data","index":1,"n_rows":5,"n_cols":73,"rows_kept":5,"cut":false,"hidden":false,"merged":[]}
["Rupture 1","Rupture 2","Rupture 3","Rupture 4","Rupture 5","Rupture 6","Rupture 7","Rupture 8","Rupture 9","Quantité 1","Quantité 2","Quantité 3","Quantité 4","Quantité 5","Quantité 6","Quantité 7","Quantité 8","Quantité 9","Quantité 10","Quantité 11","Quantité 12","Ecart période 1","Ecart période 2","Ecart période 3","Ecart période 4","Ecart période 5","Ecart période 6","Ecart période 7","Ecart période 8","Ecart période 9","Ecart période 10","Ecart période 11","Ecart période 12","Total","Moyenne","Ecart type","Période 1","Date début 1","Date fin 1","Période 2","Date début 2","Date fin 2","Période 3","Date début 3","Date fin 3","Période 4","Date début 4","Date fin 4","Période 5","Date début 5","Date fin 5","Période 6","Date début 6","Date fin 6","Période 7","Date début 7","Date fin 7","Période 8","Date début 8","Date fin 8","Période 9","Date début 9","Date fin 9","Période 10","Date début 10","Date fin 10","Période 11","Date début 11","Date fin 11","Période 12","Date début 12","Date fin 12","Intitulé du job"]
["QUAL Ets QUALIAC","DEPS01 Depot stocké 01","ARTS01 Article ARTS01",null,null,null,null,null,null,500,290,150,600,340,760,0,0,0,0,0,0,0,0,0,0,0,0,0,0,0,0,0,0,2640,440,484.73,"1501","01/01/2015","31/01/2015","1502","01/02/2015","28/02/2015","1503","01/03/2015","31/03/2015","1504","01/04/2015","30/04/2015","1505","01/05/2015","31/05/2015","1506","01/06/2015","30/06/2015",null,null,null,null,null,null,null,null,null,null,null,null,null,null,null,null,null,null,"Edition des consommations"]
["QUAL Ets QUALIAC","DEPS01 Depot stocké 01","ARTS02 Article ARTS02",null,null,null,null,null,null,450,360,190,366,119,190,0,0,0,0,0,0,0,0,0,0,0,0,0,0,0,0,0,0,1675,279.17,303.43,"1501","01/01/2015","31/01/2015","1502","01/02/2015","28/02/2015","1503","01/03/2015","31/03/2015","1504","01/04/2015","30/04/2015","1505","01/05/2015","31/05/2015","1506","01/06/2015","30/06/2015",null,null,null,null,null,null,null,null,null,null,null,null,null,null,null,null,null,null,"Edition des consommations"]
["QUAL Ets QUALIAC","DEPS01 Depot stocké 01","ARTS03 Article ARTS03",null,null,null,null,null,null,166,240,240,190,360,260,0,0,0,0,0,0,0,0,0,0,0,0,0,0,0,0,0,0,1456,242.67,250.35,"1501","01/01/2015","31/01/2015","1502","01/02/2015","28/02/2015","1503","01/03/2015","31/03/2015","1504","01/04/2015","30/04/2015","1505","01/05/2015","31/05/2015","1506","01/06/2015","30/06/2015",null,null,null,null,null,null,null,null,null,null,null,null,null,null,null,null,null,null,"Edition des consommations"]
["QUAL Ets QUALIAC","DEPS01 Depot stocké 01","ARTS04 Article ARTS04",null,null,null,null,null,null,600,400,350,346,560,314,0,0,0,0,0,0,0,0,0,0,0,0,0,0,0,0,0,0,2570,428.33,442.42,"1501","01/01/2015","31/01/2015","1502","01/02/2015","28/02/2015","1503","01/03/2015","31/03/2015","1504","01/04/2015","30/04/2015","1505","01/05/2015","31/05/2015","1506","01/06/2015","30/06/2015",null,null,null,null,null,null,null,null,null,null,null,null,null,null,null,null,null,null,"Edition des consommations"]

{"sheet":"CRITERES","index":2,"n_rows":1209,"n_cols":4,"rows_kept":1209,"cut":false,"hidden":false,"merged":[]}
["1","NUMGTETSD","Etablissement début","DDR"]
["2","NUMGTETSF","Etablissement fin","DDR"]
["3","NUMSGDEPD","Dépot début","."]
["4","NUMSGDEPF","Dépot fin","ZZZZZZ"]
["5","CLASKNMSD","Classe de mouvement début","."]
["6","CLASKNMSF","Classe de mouvement fin","ZZZZ"]
["7","DATED","Date début","20150101"]
["8","DATEF","Date fin","20150630"]
["9","NUMSGARTD","Article de début","."]
["10","NUMSGARTF","Article de fin","ZZZZZZZZZZZZZZ"]
["11","NUMSGMOSD","Mode de stockage début","."]
["12","NUMSGMOSF","Mode de stockage fin","ZZZZ"]
["13","SEU","Seuil de comparaison","AU"]
["14","CALECA","Calcul de l'écart","CS"]
["15","EDITION","Edition","Q"]
["16","PRCNEG","Prise en compte entrée négatives","I"]
["17","TYPOECAP","Type de période","M"]
["18","NUMOECAL","Numéro de calendrier"]
["19","NUMOCLSP","Numéro de liste","MCHLST"]
["20","SLPMNED","Mnémonique du Lot début"]
["21","SLPMNEF","Mnémonique du Lot fin","ZZZZZZZZZZ"]
["22","SLPARTD","Article déterminant début","."]
["23","SLPARTF","Article déterminant fin","ZZZZZZZZZZZZZZ"]
["24","SLPLOSD","Lot Supérieur début"]
["25","SLPLOSF","Lot Supérieur fin","ZZZZZZZZZZ"]
["26","SLPLOFD","Lot Fournisseur début"]
["27","SLPLOFF","Lot Fournisseur fin","ZZZZZZZZZZZZZZZZZZZZ"]
["28","SLPSERD","Numéro de série début"]
["29","SLPSERF","Numéro de série fin","ZZZZZZZZZZZZZZZZZZZZZZZZZZZZZZ"]
["30","SLPDPRD","Date de production début"]
["31","SLPDPRF","Date de production fin","20991231"]
["32","SLPDPED","Date de péremption début"]
["33","SLPDPEF","Date de péremption fin","20991231"]
["34","SLPDDED","Date dernier état début"]
["35","SLPDDEF","Date dernier état fin","20991231"]
["36","SLPINFD","Informations début"]
["37","SLPINFF","Informations fin","zzzzzzzzzzzzzzzzzzzzzzzzzzzzzzzzzzzzzzzzzzzzzzzzzzzzzzzzzzzzzzzzzzzzzzzzzzzzzzzzzzzzzzzzzzzzzzzzzzzzzzzzzzzzzzzzzzzzzzzzzzzzzzzzzzzzzzzzzzzzzzzzzzzzzzzzzzzzzzzzzzzzzzzzzzzzzzzzzzzzzzzzzzzzzzzzzzzzzzzzzzzzzzzzzzzzzzzzzzzzzzzzzzzzzzzzzzzzzzzz"]
["38","SLPETAD","Etat début","."]
["39","SLPETAF","Etat fin","Z"]
["40","SLPTYPD","Type début"]
["41","SLPTYPF","Type fin","ZZ"]
["42","SLPNATD","Nature début"]
["43","SLPNATF","Nature fin","ZZ"]
["44","SLPGEND","Genre début"]
["45","SLPGENF","Genre fin","ZZ"]
["46","SLPROLD","Rôle début"]
["47","SLPROLF","Rôle fin","Z"]
["48","SLPDCRD","Date de création début","19000101"]
["49","SLPDCRF","Date de création fin","20991231"]
["50","SLPUCRD","Utilisateur de création début","."]
["51","SLPUCRF","Utilisateur de création fin","ZZZZZZZZZZZZZZZZZZZZZZZZZZZZZZ"]
["52","SLPDDMD","Date de modification début"]
["53","SLPDDMF","Date de modification fin","20991231"]
["54","SLPUDMD","Utilisateur de modification début"]
["55","SLPUDMF","Utilisateur de modification fin","ZZZZZZZZZZZZZZZZZZZZZZZZZZZZZZ"]
["56","SLPDPID","Date de péremption initiale début"]
["57","SLPDPIF","Date de péremption initiale fin","20991231"]
["58","SLPSTQD","Statut qualité début"]
["59","SLPSTQF","Statut qualité fin","ZZZZ"]
["60","SLPPERD","Péremption début"]
["61","SLPPERF","Péremption fin","ZZZZZZZZZZZZZZZZZZZZ"]
["62","SCSCHMD","Chemin"]
["63","SCSCHMC","Chemin crédit"]
["64","SCSCTPRTI","Contrepartie","I"]
["65","SATMNED","Article : Mnémonique début"]
["66","SATMNEF","Article : Mnémonique fin","ZZZZZZZZZZ"]
["67","SATARMD","Article : Marque début","."]
["68","SATARMF","Article : Marque fin","ZZZZZZZZZZ"]
["69","SATARFD","Article : Forme début","."]
["70","SATARFF","Article : Forme fin","ZZZZZZZZZZ"]
["71","SATARSD","Article : Série début","."]
["72","SATARSF","Article : Série fin","ZZZZZZZZZZ"]
["73","SATARPD","Article : Présentation début","."]
["74","SATARPF","Article : Présentation fin","ZZZZZZZZZZ"]
["75","SATARED","Article : Conditionnement début","."]
["76","SATAREF","Article : Conditionnement fin","ZZZZZZZZZZ"]
["77","SATARGD","Article : Regroupement début","."]
["78","SATARGF","Article : Regroupement fin","ZZZZZZZZZZ"]
["79","SATFOND","Article : Fonction début"]
["80","SATFONF","Article : Fonction fin","ZZZZZZ"]
["81","SATNAED","Article : Article élémentaire début","."]
["82","SATNAEF","Article : Article élémentaire fin","ZZZZZZZZZZZZZZ"]
["83","SATNACD","Article : Article pour consolidation début","."]
["84","SATNACF","Article : Article pour consolidation fin","ZZZZZZZZZZZZZZ"]
["85","SATNASD","Article : Article stocké début","."]
["86","SATNASF","Article : Article stocké fin","ZZZZZZZZZZZZZZ"]
["87","SATPERD","Article : Péremption début"]
["88","SATPERF","Article : Péremption fin","ZZZZ"]
["89","SATUNVD","Article : Unité de vente début"]
["90","SATUNVF","Article : Unité de vente fin","ZZZZZZ"]
["91","SATUNLD","Article : Unité de livraison début"]
["92","SATUNLF","Article : Unité de livraison fin","ZZZZZZ"]
["93","SATUNFD","Article : Unité de facturation début"]
["94","SATUNFF","Article : Unité de facturation fin","ZZZZZZ"]
["95","SATUNSD","Article : Unité de stockage début"]
["96","SATUNSF","Article : Unité de stockage fin","ZZZZZZ"]
["97","SATUNAD","Article : Unité d'achat début"]
["98","SATUNAF","Article : Unité d'achat fin","ZZZZZZ"]
["99","SATTYPD","Article : Type début"]
["100","SATTYPF","Article : Type fin","ZZ"]
["101","SATNATD","Article : Nature début"]
["102","SATNATF","Article : Nature fin","ZZ"]
["103","SATGEND","Article : Genre début"]
["104","SATGENF","Article : Genre fin","ZZ"]
["105","SATROLD","Article : Rôle début"]
["106","SATROLF","Article : Rôle fin","Z"]
["107","SATETAD","Article : Etat début","."]
["108","SATETAF","Article : Etat fin","Z"]
["109","SATUNMD","Article : Unité de maintenance début"]
["110","SATUNMF","Article : Unité de maintenance fin","ZZZZZZ"]
["111","SATUNDD","Article : Unité de demande d'achat début"]
["112","SATUNDF","Article : Unité de demande d'achat fin","ZZZZZZ"]
["113","SATULPD","Article : Unité logistique primaire début"]
["114","SATULPF","Article : Unité logistique primaire fin","ZZZZZZ"]
["115","SATULSD","Article : Unité logistique secondaire début"]
["116","SATULSF","Article : Unité logistique secondaire fin","ZZZZZZ"]
["117","SATUCOD","Article : Unité de consommation début"]
["118","SATUCOF","Article : Unité de consommation fin","ZZZZZZ"]
["119","SATCDOD","Article : Nomclature douanière début"]
["120","SATCDOF","Article : Nomclature douanière fin","ZZZZZZZZZZZZZ"]
["121","SATDCRD","Article : Date de création début","19000101"]
["122","SATDCRF","Article : Date de création fin","20991231"]
["123","SATDDMD","Article : Date de modification début"]
["124","SATDDMF","Article : Date de modification fin","20991231"]
["125","SATEAND","Article : Code EAN début"]
["126","SATEANF","Article : Code EAN fin","ZZZZZZZZZZZZZZZZZ"]
["127","SATITFD","Article : Code ITF début"]
["128","SATITFF","Article : Code ITF fin","ZZZZZZZZZZZZZZZZ"]
["129","SATUCRD","Article : Créateur début","."]
["130","SATUCRF","Article : Créateur fin","ZZZZZZZZZZZZZZZZZZZZZZZZZZZZZZ"]
["131","SATUDMD","Article : Modificateur début"]
["132","SATUDMF","Article : Modificateur fin","ZZZZZZZZZZZZZZZZZZZZZZZZZZZZZZ"]
["133","SRBVAL01D","Rubriques alphanumérique 1 début"]
["134","SRBVAL01F","Rubriques alphanumérique 1 fin","zzzzzzzzzzzzzzzzzzzzzzzzzzzzzzzzzzzzzzzzzzzzzzzzzzzzzzzzzzzz"]
["135","SRBVAL02D","Rubriques alphanumérique 2 début"]
["136","SRBVAL02F","Rubriques alphanumérique 2 fin","zzzzzzzzzzzzzzzzzzzzzzzzzzzzzzzzzzzzzzzzzzzzzzzzzzzzzzzzzzzz"]
["137","SRBVAL03D","Rubriques alphanumérique 3 début"]
["138","SRBVAL03F","Rubriques alphanumérique 3 fin","zzzzzzzzzzzzzzzzzzzzzzzzzzzzzzzzzzzzzzzzzzzzzzzzzzzzzzzzzzzz"]
["139","SRBVAL04D","Rubriques alphanumérique 4 début"]
["140","SRBVAL04F","Rubriques alphanumérique 4 fin","zzzzzzzzzzzzzzzzzzzzzzzzzzzzzzzzzzzzzzzzzzzzzzzzzzzzzzzzzzzz"]
["141","SRBVAL05D","Rubriques alphanumérique 5 début"]
["142","SRBVAL05F","Rubriques alphanumérique 5 fin","zzzzzzzzzzzzzzzzzzzzzzzzzzzzzzzzzzzzzzzzzzzzzzzzzzzzzzzzzzzz"]
["143","SRBVAL06D","Rubriques alphanumérique 6 début"]
["144","SRBVAL06F","Rubriques alphanumérique 6 fin","zzzzzzzzzzzzzzzzzzzzzzzzzzzzzzzzzzzzzzzzzzzzzzzzzzzzzzzzzzzz"]
["145","SRBVAL07D","Rubriques alphanumérique 7 début"]
["146","SRBVAL07F","Rubriques alphanumérique 7 fin","zzzzzzzzzzzzzzzzzzzzzzzzzzzzzzzzzzzzzzzzzzzzzzzzzzzzzzzzzzzz"]
["147","SRBVAL08D","Rubriques alphanumérique 8 début"]
["148","SRBVAL08F","Rubriques alphanumérique 8 fin","zzzzzzzzzzzzzzzzzzzzzzzzzzzzzzzzzzzzzzzzzzzzzzzzzzzzzzzzzzzz"]
["149","SRBVAL09D","Rubriques alphanumérique 9 début"]
["150","SRBVAL09F","Rubriques alphanumérique 9 fin","zzzzzzzzzzzzzzzzzzzzzzzzzzzzzzzzzzzzzzzzzzzzzzzzzzzzzzzzzzzz"]
["151","SRBVAL10D","Rubriques alphanumérique 10 début"]
["152","SRBVAL10F","Rubriques alphanumérique 10 fin","zzzzzzzzzzzzzzzzzzzzzzzzzzzzzzzzzzzzzzzzzzzzzzzzzzzzzzzzzzzz"]
["153","SRBVAL11D","Rubriques alphanumérique 11 début"]
["154","SRBVAL11F","Rubriques alphanumérique 11 fin","99999999.999999"]
["155","SRBVAL12D","Rubriques alphanumérique 12 début"]
["156","SRBVAL12F","Rubriques alphanumérique 12 fin","99999999.999999"]
["157","SRBVAL13D","Rubriques alphanumérique 13 début"]
["158","SRBVAL13F","Rubriques alphanumérique 13 fin","99999999.999999"]
["159","SRBVAL14D","Rubriques alphanumérique 14 début"]
["160","SRBVAL14F","Rubriques alphanumérique 14 fin","99999999.999999"]
["161","SRBVAL15D","Rubriques alphanumérique 15 début"]
["162","SRBVAL15F","Rubriques alphanumérique 15 fin","99999999.999999"]
["163","SRBVAL16D","Rubriques alphanumérique 16 début"]
["164","SRBVAL16F","Rubriques alphanumérique 16 fin","99999999.999999"]
["165","SRBVAL17D","Rubriques alphanumérique 17 début"]
["166","SRBVAL17F","Rubriques alphanumérique 17 fin","99999999.999999"]
["167","SRBVAL18D","Rubriques alphanumérique 18 début"]
["168","SRBVAL18F","Rubriques alphanumérique 18 fin","99999999.999999"]
["169","SRBVAL19D","Rubriques alphanumérique 19 début"]
["170","SRBVAL19F","Rubriques alphanumérique 19 fin","99999999.999999"]
["171","SRBVAL20D","Rubriques alphanumérique 20 début"]
["172","SRBVAL20F","Rubriques alphanumérique 20 fin","99999999.999999"]
["173","SRBVAL21D","Rubriques alphanumérique 21 début"]
["174","SRBVAL21F","Rubriques alphanumérique 21 fin","20991231"]
["175","SRBVAL22D","Rubriques alphanumérique 22 début"]
["176","SRBVAL22F","Rubriques alphanumérique 22 fin","20991231"]
["177","SRBVAL23D","Rubriques alphanumérique 23 début"]
["178","SRBVAL23F","Rubriques alphanumérique 23 fin","20991231"]
["179","SRBVAL24D","Rubriques alphanumérique 24 début"]
["180","SRBVAL24F","Rubriques alphanumérique 24 fin","20991231"]
["181","SRBVAL25D","Rubriques alphanumérique 25 début"]
["182","SRBVAL25F","Rubriques alphanumérique 25 fin","20991231"]
["183","SRBVAL26D","Rubriques alphanumérique 26 début"]
["184","SRBVAL26F","Rubriques alphanumérique 26 fin","20991231"]
["185","SRBVAL27D","Rubriques alphanumérique 27 début"]
["186","SRBVAL27F","Rubriques alphanumérique 27 fin","20991231"]
["187","SRBVAL28D","Rubriques alphanumérique 28 début"]
["188","SRBVAL28F","Rubriques alphanumérique 28 fin","20991231"]
["189","SRBVAL29D","Rubriques alphanumérique 29 début"]
["190","SRBVAL29F","Rubriques alphanumérique 29 fin","20991231"]
["191","SRBVAL30D","Rubriques alphanumérique 30 début"]
["192","SRBVAL30F","Rubriques alphanumérique 30 fin","20991231"]
["193","SRBVAL31D","Rubriques alphanumérique 31 début"]
["194","SRBVAL31F","Rubriques alphanumérique 31 fin","zzzzzzzzzzzzzzzzzzzzzzzzzzzzzzzzzzzzzzzzzzzzzzzzzzzzzzzzzzzz"]
["195","SRBVAL32D","Rubriques alphanumérique 32 début"]
["196","SRBVAL32F","Rubriques alphanumérique 32 fin","zzzzzzzzzzzzzzzzzzzzzzzzzzzzzzzzzzzzzzzzzzzzzzzzzzzzzzzzzzzz"]
["197","SRBVAL33D","Rubriques alphanumérique 33 début"]
["198","SRBVAL33F","Rubriques alphanumérique 33 fin","zzzzzzzzzzzzzzzzzzzzzzzzzzzzzzzzzzzzzzzzzzzzzzzzzzzzzzzzzzzz"]
["199","SRBVAL34D","Rubriques alphanumérique 34 début"]
["200","SRBVAL34F","Rubriques alphanumérique 34 fin","zzzzzzzzzzzzzzzzzzzzzzzzzzzzzzzzzzzzzzzzzzzzzzzzzzzzzzzzzzzz"]
["201","SRBVAL35D","Rubriques alphanumérique 35 début"]
["202","SRBVAL35F","Rubriques alphanumérique 35 fin","zzzzzzzzzzzzzzzzzzzzzzzzzzzzzzzzzzzzzzzzzzzzzzzzzzzzzzzzzzzz"]
["203","SRBVAL36D","Rubriques alphanumérique 36 début"]
["204","SRBVAL36F","Rubriques alphanumérique 36 fin","zzzzzzzzzzzzzzzzzzzzzzzzzzzzzzzzzzzzzzzzzzzzzzzzzzzzzzzzzzzz"]
["205","SRBVAL37D","Rubriques alphanumérique 37 début"]
["206","SRBVAL37F","Rubriques alphanumérique 37 fin","zzzzzzzzzzzzzzzzzzzzzzzzzzzzzzzzzzzzzzzzzzzzzzzzzzzzzzzzzzzz"]
["207","SRBVAL38D","Rubriques alphanumérique 38 début"]
["208","SRBVAL38F","Rubriques alphanumérique 38 fin","zzzzzzzzzzzzzzzzzzzzzzzzzzzzzzzzzzzzzzzzzzzzzzzzzzzzzzzzzzzz"]
["209","SRBVAL39D","Rubriques alphanumérique 39 début"]
["210","SRBVAL39F","Rubriques alphanumérique 39 fin","zzzzzzzzzzzzzzzzzzzzzzzzzzzzzzzzzzzzzzzzzzzzzzzzzzzzzzzzzzzz"]
["211","SRBVAL40D","Rubriques alphanumérique 40 début"]
["212","SRBVAL40F","Rubriques alphanumérique 40 fin","zzzzzzzzzzzzzzzzzzzzzzzzzzzzzzzzzzzzzzzzzzzzzzzzzzzzzzzzzzzz"]
["213","SRBVAL41D","Rubriques alphanumérique 41 début"]
["214","SRBVAL41F","Rubriques alphanumérique 41 fin","zzzzzzzzzzzzzzzzzzzzzzzzzzzzzzzzzzzzzzzzzzzzzzzzzzzzzzzzzzzz"]
["215","SRBVAL42D","Rubriques alphanumérique 42 début"]
["216","SRBVAL42F","Rubriques alphanumérique 42 fin","zzzzzzzzzzzzzzzzzzzzzzzzzzzzzzzzzzzzzzzzzzzzzzzzzzzzzzzzzzzz"]
["217","SRBVAL43D","Rubriques alphanumérique 43 début"]
["218","SRBVAL43F","Rubriques alphanumérique 43 fin","zzzzzzzzzzzzzzzzzzzzzzzzzzzzzzzzzzzzzzzzzzzzzzzzzzzzzzzzzzzz"]
["219","SRBVAL44D","Rubriques alphanumérique 44 début"]
["220","SRBVAL44F","Rubriques alphanumérique 44 fin","zzzzzzzzzzzzzzzzzzzzzzzzzzzzzzzzzzzzzzzzzzzzzzzzzzzzzzzzzzzz"]
["221","SRBVAL45D","Rubriques alphanumérique 45 début"]
["222","SRBVAL45F","Rubriques alphanumérique 45 fin","zzzzzzzzzzzzzzzzzzzzzzzzzzzzzzzzzzzzzzzzzzzzzzzzzzzzzzzzzzzz"]
["223","SRBVAL46D","Rubriques alphanumérique 46 début"]
["224","SRBVAL46F","Rubriques alphanumérique 46 fin","zzzzzzzzzzzzzzzzzzzzzzzzzzzzzzzzzzzzzzzzzzzzzzzzzzzzzzzzzzzz"]
["225","SRBVAL47D","Rubriques alphanumérique 47 début"]
["226","SRBVAL47F","Rubriques alphanumérique 47 fin","zzzzzzzzzzzzzzzzzzzzzzzzzzzzzzzzzzzzzzzzzzzzzzzzzzzzzzzzzzzz"]
["227","SRBVAL48D","Rubriques alphanumérique 48 début"]
["228","SRBVAL48F","Rubriques alphanumérique 48 fin","zzzzzzzzzzzzzzzzzzzzzzzzzzzzzzzzzzzzzzzzzzzzzzzzzzzzzzzzzzzz"]
["229","SRBVAL49D","Rubriques alphanumérique 49 début"]
["230","SRBVAL49F","Rubriques alphanumérique 49 fin","zzzzzzzzzzzzzzzzzzzzzzzzzzzzzzzzzzzzzzzzzzzzzzzzzzzzzzzzzzzz"]
["231","SRBVAL50D","Rubriques alphanumérique 50 début"]
["232","SRBVAL50F","Rubriques alphanumérique 50 fin","zzzzzzzzzzzzzzzzzzzzzzzzzzzzzzzzzzzzzzzzzzzzzzzzzzzzzzzzzzzz"]
["233","SMSETSD","Etablissement début","."]
["234","SRBVAL51D","Rubriques alphanumérique 51 début"]
["235","SMSETSF","Etablissement fin","ZZZZZZ"]
["236","SRBVAL51F","Rubriques alphanumérique 51 fin","99999999.999999"]
["237","SMSDEPD","Dépot début","."]
["238","SRBVAL52D","Rubriques alphanumérique 52 début"]
["239","SMSDEPF","Dépot fin","ZZZZZZ"]
["240","SRBVAL52F","Rubriques alphanumérique 52 fin","99999999.999999"]
["241","SRBVAL53D","Rubriques alphanumérique 53 début"]
["242","SMSDCRD","Date de création début","19000101"]
["243","SMSDCRF","Date de création fin","20991231"]
["244","SRBVAL53F","Rubriques alphanumérique 53 fin","99999999.999999"]
["245","SMSUCRD","Utilisateur de création début","."]
["246","SRBVAL54D","Rubriques alphanumérique 54 début"]
["247","SRBVAL54F","Rubriques alphanumérique 54 fin","99999999.999999"]
["248","SMSUCRF","Utilisateur de création fin","ZZZZZZZZZZZZZZZZZZZZZZZZZZZZZZ"]
["249","SMSDDMD","Date de création début"]
["250","SRBVAL55D","Rubriques alphanumérique 55 début"]
["251","SMSDDMF","Date de création fin","20991231"]
["252","SRBVAL55F","Rubriques alphanumérique 55 fin","99999999.999999"]
["253","SMSUDMD","Utilisateur de modification début"]
["254","SRBVAL56D","Rubriques alphanumérique 56 début"]
["255","SRBVAL56F","Rubriques alphanumérique 56 fin","99999999.999999"]
["256","SMSUDMF","Utilisateur de modification fin","ZZZZZZZZZZZZZZZZZZZZZZZZZZZZZZ"]
["257","SRBVAL57D","Rubriques alphanumérique 57 début"]
["258","SRBVAL57F","Rubriques alphanumérique 57 fin","99999999.999999"]
["259","SRBVAL58D","Rubriques alphanumérique 58 début"]
["260","SRBVAL58F","Rubriques alphanumérique 58 fin","99999999.999999"]
["261","SRBVAL59D","Rubriques alphanumérique 59 début"]
["262","SRBVAL59F","Rubriques alphanumérique 59 fin","99999999.999999"]
["263","SRBVAL60D","Rubriques alphanumérique 60 début"]
["264","SRBVAL60F","Rubriques alphanumérique 60 fin","99999999.999999"]
["265","SRBENT01","Entité 1"]
["266","SRBENT02","Entité 2"]
["267","SRBENT03","Entité 3"]
["268","SRBENT04","Entité 4"]
["269","SRBENT05","Entité 5"]
["270","SRBENT06","Entité 6"]
["271","SRBENT07","Entité 7"]
["272","SRBENT08","Entité 8"]
["273","SRBENT09","Entité 9"]
["274","SRBENT10","Entité 10"]
["275","SRBENT11","Entité 11"]
["276","SRBENT12","Entité 12"]
["277","SRBENT13","Entité 13"]
["278","SRBENT14","Entité 14"]
["279","SRBENT15","Entité 15"]
["280","SRBENT16","Entité 16"]
["281","SRBENT17","Entité 17"]
["282","SRBENT18","Entité 18"]
["283","SRBENT19","Entité 19"]
["284","SRBENT20","Entité 20"]
["285","SRBENT21","Entité 21"]
["286","SRBENT22","Entité 22"]
["287","SRBENT23","Entité 23"]
["288","SRBENT24","Entité 24"]
["289","SRBENT25","Entité 25"]
["290","SRBENT26","Entité 26"]
["291","SRBENT27","Entité 27"]
["292","SRBENT28","Entité 28"]
["293","SRBENT29","Entité 29"]
["294","SRBENT30","Entité 30"]
["295","SRBENT31","Entité 31"]
["296","SRBENT32","Entité 32"]
["297","SRBENT33","Entité 33"]
["298","SRBENT34","Entité 34"]
["299","SRBENT35","Entité 35"]
["300","SRBENT36","Entité 36"]
["301","SRBENT37","Entité 37"]
["302","SRBENT38","Entité 38"]
["303","SRBENT39","Entité 39"]
["304","SRBENT40","Entité 40"]
["305","SRBENT41","Entité 41"]
["306","SRBENT42","Entité 42"]
["307","SRBENT43","Entité 43"]
["308","SRBENT44","Entité 44"]
["309","SRBENT45","Entité 45"]
["310","SRBENT46","Entité 46"]
["311","SRBENT47","Entité 47"]
["312","SRBENT48","Entité 48"]
["313","SRBENT49","Entité 49"]
["314","SRBENT50","Entité 50"]
["315","SRBENT51","Entité 51"]
["316","SRBENT52","Entité 52"]
["317","SRBENT53","Entité 53"]
["318","SRBENT54","Entité 54"]
["319","SRBENT55","Entité 55"]
["320","SRBENT56","Entité 56"]
["321","SRBENT57","Entité 57"]
["322","SRBENT58","Entité 58"]
["323","SRBENT59","Entité 59"]
["324","SRBENT60","Entité 60"]
["325","SASMNED","Mnémonique de début"]
["326","SASMNEF","Mnémonique de fin","ZZZZZZZZ"]
["327","SASGESD","Gestionnaire de début"]
["328","SASGESF","Gestionnaire de fin","ZZZZZZ"]
["329","SASORDD","Ordre édition de début"]
["330","SASORDF","Ordre édition de fin","ZZZZZZZZZZ"]
["331","SASMOCD","Mode de contrôle de début","."]
["332","SASMOCF","Mode de contrôle de fin","ZZZZ"]
["333","SASPERD","Péremption de début"]
["334","SASPERF","Péremption de fin","ZZZZ"]
["335","SASCATD","Catégorie de l'article de début"]
["336","SASCATF","Catégorie de l'article de fin","ZZZZZZZZZZ"]
["337","SASIAPD","Réapprovisionnement automatique de début","."]
["338","SASIAPF","Réapprovisionnement automatique de fin","Z"]
["339","SASCLAD","Classement quantité de début"]
["340","SASCLAF","Classement quantité de fin","ZZZZZZZZ"]
["341","SASNBJD","Nombre de jours début"]
["342","SASNBJF","Nombre de jours fin","999"]
["343","SASTYPD","Type de début"]
["344","SASTYPF","Type de fin","ZZ"]
["345","SASNATD","Nature de début"]
["346","SASNATF","Nature de fin","ZZ"]
["347","SASGEND","Genre de début"]
["348","SASGENF","Genre de fin","ZZ"]
["349","SASROLD","Rôle de début"]
["350","SASROLF","Rôle de fin","Z"]
["351","SASETAD","Etat de début","."]
["352","SASETAF","Etat de fin","Z"]
["353","SASCPSD","Compte de stock début"]
["354","SASCPSF","Compte de stock fin","ZZZZZZZZZZ"]
["355","SASCPPD","Compt de produit début"]
["356","SASCPPF","Compt de produit fin","ZZZZZZZZZZ"]
["357","SASCPCD","Compte de charge début"]
["358","SASCPCF","Compte de charge fin","ZZZZZZZZZZ"]
["359","SASCGRD","CGR de début"]
["360","SASCGRF","CGR de fin","ZZZZZZZZZZZZZZZZZZZZZZZZZZZZZZZZZZZZZZZZZZZZZZZZZZZZZZZZZZZZZZZZZZZZZZZZZZZZZZZZ"]
["361","SASRCRD","Regroupement compte/CGR de début"]
["362","SASRCRF","Regroupement compte/CGR de fin","ZZZZ"]
["363","SASDCRD","Date de création de début","19000101"]
["364","SASDCRF","Date de création de fin","20991231"]
["365","SASUCRD","Utilisateur de création de début","."]
["366","SASUCRF","Utilisateur de création de fin","ZZZZZZZZZZZZZZZZZZZZZZZZZZZZZZ"]
["367","SASDDMD","Date de modification de début"]
["368","SASDDMF","Date de modification de fin","20991231"]
["369","SASUDMD","Utilisateur de modification de début"]
["370","SASUDMF","Utilisateur de modification de fin","ZZZZZZZZZZZZZZZZZZZZZZZZZZZZZZ"]
["371","SASDEMD","Emplacement principal début"]
["372","SASDEMF","Emplacement principal fin","ZZZZZZZZZZ"]
["373","SASDEPD","Dépôt principal début"]
["374","SASDEPF","Dépôt principal fin","ZZZZZZ"]
["375","SASDDUD","Date dernière utilisation début"]
["376","SASDDUF","Date dernière utilisation fin","20991231"]
["377","SASSTQD","Statut qualité début"]
["378","SASSTQF","Statut qualité fin","ZZZZ"]
["379","SASPOCD","Poste de charge début"]
["380","SASPOCF","Poste de charge fin","ZZZZZZZZZZ"]
["381","SASPOPD","Poste de produit début"]
["382","SASPOPF","Poste de produit fin","ZZZZZZZZZZ"]
["383","SASPOSD","Poste de stock début"]
["384","SASPOSF","Poste de stock fin","ZZZZZZZZZZ"]
["385","SASCLVD","Classement valeur de début"]
["386","SASCLVF","Classement valeur de fin","ZZZZZZZZ"]
["387","SASCLLD","Classement nombre de lignes de déb"]
["388","SASCLLF","Classement nombre de lignes de fin","ZZZZZZZZ"]
["389","SCSCPTDD","Compte débit début"]
["390","SCSCPTDF","Compte débit fin","ZZZZZZZZZZ"]
["391","SCSCGADD","CGR A débit début"]
["392","SCSCGADF","CGR A débit fin","ZZZZZZZZZZZZZZZZZZZZZZZZZZZZZZZZZZZZZZZZZZZZZZZZZZZZZZZZZZZZZZZZZZZZZZZZZZZZZZZZ"]
["393","SCSCGBDD","CGR B débit début"]
["394","SCSCGBDF","CGR B débit fin","ZZZZZZZZZZZZZZZZZZZZ"]
["395","SCSCPTCD","Compte crédit début"]
["396","SCSCPTCF","Compte crédit fin","ZZZZZZZZZZ"]
["397","SCSCGACD","CGR A crédit début"]
["398","SCSCGACF","CGR A crédit fin","ZZZZZZZZZZZZZZZZZZZZZZZZZZZZZZZZZZZZZZZZZZZZZZZZZZZZZZZZZZZZZZZZZZZZZZZZZZZZZZZZ"]
["399","SCSCGBCD","CGR B crédit début"]
["400","SCSCGBCF","CGR B crédit fin","ZZZZZZZZZZZZZZZZZZZZ"]
["401","SCSPIED","Numéro de pièce début"]
["402","SCSPIEF","Numéro de pièce fin","ZZZZZZZZZZ"]
["403","SCSPOSDD","Poste débit début"]
["404","SCSPOSDF","Poste débit fin","ZZZZZZZZZZ"]
["405","SCSPOSCD","Poste crédit début"]
["406","SCSPOSCF","Poste crédit fin","ZZZZZZZZZZ"]
["407","SRUTOTAL1","Rupture et/ou total 1","ETABLISSEMENT"]
["408","SRUTOTAL2","Rupture et/ou total 2","DEPOT"]
["409","SRUTOTAL3","Rupture et/ou total 3","ARTICLE"]
["410","SRUTOTAL4","Rupture et/ou total 4"]
["411","SRUTOTAL5","Rupture et/ou total 5"]
["412","SRUTOTAL6","Rupture et/ou total 6"]
["413","SRUTOTAL7","Rupture et/ou total 7"]
["414","SRUTOTAL8","Rupture et/ou total 8"]
["415","SRUTOTAL9","Rupture et/ou total 9"]
["416","SRUTRI","Tri supplémentaire"]
["417","SRURRUP","Rappel Rupture"]
["418","SRUSAUT","Saut de page"]
["419","SRUBLD1","Edition ligne blanche début rupture 1","I"]
["420","SRUBLF1","Edition ligne blanche fin rupture 1","I"]
["421","SRUBLD2","Edition ligne blanche début rupture 2","I"]
["422","SRUBLF2","Edition ligne blanche fin rupture 2","I"]
["423","SRUBLD3","Edition ligne blanche début rupture 3","I"]
["424","SRUBLF3","Edition ligne blanche fin rupture 3","I"]
["425","SRUBLD4","Edition ligne blanche début rupture 4","I"]
["426","SRUBLF4","Edition ligne blanche fin rupture 4","I"]
["427","SRUBLD5","Edition ligne blanche début rupture 5","I"]
["428","SRUBLF5","Edition ligne blanche fin rupture 5","I"]
["429","SRUBLD6","Edition ligne blanche début rupture 6","I"]
["430","SRUBLF6","Edition ligne blanche fin rupture 6","I"]
["431","SRUBLD7","Edition ligne blanche début rupture 7","I"]
["432","SRUBLF7","Edition ligne blanche fin rupture 7","I"]
["433","SRUBLD8","Edition ligne blanche début rupture 8","I"]
["434","SRUBLF8","Edition ligne blanche fin rupture 8","I"]
["435","SRUBLD9","Edition ligne blanche début rupture 9","I"]
["436","SRUBLF9","Edition ligne blanche fin rupture 9","I"]
["437","SRBRUB01","Rubrique 1"]
["438","SRBRUB02","Rubrique 2"]
["439","SRBRUB03","Rubrique 3"]
["440","SRBRUB04","Rubrique 4"]
["441","SRBRUB05","Rubrique 5"]
["442","SRBRUB06","Rubrique 6"]
["443","SRBRUB07","Rubrique 7"]
["444","SRBRUB08","Rubrique 8"]
["445","SRBRUB09","Rubrique 8"]
["446","SRBRUB10","Rubrique 10"]
["447","SRBRUB11","Rubrique 11"]
["448","SRBRUB12","Rubrique 12"]
["449","SRBRUB13","Rubrique 13"]
["450","SRBRUB14","Rubrique 14"]
["451","SRBRUB15","Rubrique 15"]
["452","SRBRUB16","Rubrique 16"]
["453","SRBRUB17","Rubrique 17"]
["454","SRBRUB18","Rubrique 18"]
["455","SRBRUB19","Rubrique 19"]
["456","SRBRUB20","Rubrique 20"]
["457","SRBRUB21","Rubrique 21"]
["458","SRBRUB22","Rubrique 22"]
["459","SRBRUB23","Rubrique 23"]
["460","SRBRUB24","Rubrique 24"]
["461","SRBRUB25","Rubrique 25"]
["462","SRBRUB26","Rubrique 26"]
["463","SRBRUB27","Rubrique 27"]
["464","SRBRUB28","Rubrique 28"]
["465","SRBRUB29","Rubrique 29"]
["466","SRBRUB30","Rubrique 30"]
["467","SRBRUB31","Rubrique 31"]
["468","SRBRUB32","Rubrique 32"]
["469","SRBRUB33","Rubrique 33"]
["470","SRBRUB34","Rubrique 34"]
["471","SRBRUB35","Rubrique 35"]
["472","SRBRUB36","Rubrique 36"]
["473","SRBRUB37","Rubrique 37"]
["474","SRBRUB38","Rubrique 38"]
["475","SRBRUB39","Rubrique 39"]
["476","SRBRUB40","Rubrique 40"]
["477","SRBRUB41","Rubrique 41"]
["478","SRBRUB42","Rubrique 42"]
["479","SRBRUB43","Rubrique 43"]
["480","SRBRUB44","Rubrique 44"]
["481","SRBRUB45","Rubrique 45"]
["482","SRBRUB46","Rubrique 46"]
["483","SRBRUB47","Rubrique 47"]
["484","SRBRUB48","Rubrique 48"]
["485","SRBRUB49","Rubrique 49"]
["486","SRBRUB50","Rubrique 50"]
["487","SRBRUB51","Rubrique 51"]
["488","SRBRUB52","Rubrique 52"]
["489","SRBRUB53","Rubrique 53"]
["490","SRBRUB54","Rubrique 54"]
["491","SRBRUB55","Rubrique 55"]
["492","SRBRUB56","Rubrique 56"]
["493","SRBRUB57","Rubrique 57"]
["494","SRBRUB58","Rubrique 58"]
["495","SRBRUB59","Rubrique 59"]
["496","SRBRUB60","Rubrique 60"]
["497","SRBDOM","Domaine","S"]
["498","SATEUDMD","Article / ets : Modificateur début"]
["499","SATEUDMF","Article / ets : Modificateur fin","ZZZZZZZZZZZZZZZZZZZZZZZZZZZZZZ"]
["500","SATEDCRD","Article / ets : Date création début","19000101"]
["501","SATEDCRF","Article / ets : Date création fin","20991231"]
["502","SATEDDMD","Article / ets : Date modification début"]
["503","SATEDDMF","Article / ets : Date modification fin","20991231"]
["504","SATEDLCD","Article / ets : Délai de contrôle début"]
["505","SATEDLCF","Article / ets : Délai de contrôle fin","ZZZZ"]
["506","SATEEAND","Article / ets : Code EAN début"]
["507","SATEEANF","Article / ets : Code EAN fin","ZZZZZZZZZZZZZZZZZ"]
["508","SATEETAD","Article / ets : Etat début","."]
["509","SATEETAF","Article / ets : Etat fin","Z"]
["510","SATEFNVD","Article / ets : Fonction de valorisation début","."]
["511","SATEFNVF","Article / ets : Fonction de valorisation fin","ZZZZ"]
["512","SATEFOND","Article / ets : Fonction début"]
["513","SATEFONF","Article / ets : Fonction fin","ZZZZZZ"]
["514","SATEGEND","Article / ets : Genre début"]
["515","SATEGENF","Article / ets : Genre fin","ZZ"]
["516","SATEGESD","Article / ets : Gestionnaire début"]
["517","SATEGESF","Article / ets : Gestionnaire fin","ZZZZZZ"]
["518","SATEITFD","Article / ets : Code ITF début"]
["519","SATEITFF","Article / ets : Code ITF fin","ZZZZZZZZZZZZZZZZ"]
["520","SATEMNED","Article / ets : Mnémonique début"]
["521","SATEMNEF","Article / ets : Mnémonique début","ZZZZZZZZZZ"]
["522","SATENATD","Article / ets : Nature début"]
["523","SATENATF","Article / ets : Nature fin","ZZ"]
["524","SATEORDD","Article / ets : Numéro ordre édition début"]
["525","SATEORDF","Article / ets : Numéro ordre édition fin","ZZZZZZZZZZ"]
["526","SATEPERD","Article / ets : Péremption début"]
["527","SATEPERF","Article / ets : Péremption fin","ZZZZ"]
["528","SATEROLD","Article / ets : Rôle début"]
["529","SATEROLF","Article / ets : Rôle fin","Z"]
["530","SATETCMD","Article / ets : Commettant début"]
["531","SATETCMF","Article / ets : Commettant fin","ZZZZZZZZZZ"]
["532","SATETYPD","Article / ets : Type début"]
["533","SATETYPF","Article / ets : Type fin","ZZ"]
["534","SATEUCRD","Article / ets : Créateur début","."]
["535","SATEUCRF","Article / ets : Créateur fin","ZZZZZZZZZZZZZZZZZZZZZZZZZZZZZZ"]
["536","SRCCPSD","Compte stock début"]
["537","SRCCPSF","Compte stock fin","ZZZZZZZZZZ"]
["538","SRCPOSD","Poste stock début"]
["539","SRCPOSF","Poste stock fin","ZZZZZZZZZZ"]
["540","SRCGASD","Segments stock début"]
["541","SRCGASF","Segments stock fin","ZZZZZZZZZZZZZZZZZZZZZZZZZZZZZZZZZZZZZZZZZZZZZZZZZZZZZZZZZZZZZZZZZZZZZZZZZZZZZZZZ"]
["542","SRCGBSD","CGR B stock début"]
["543","SRCGBSF","CGR B stock fin","ZZZZZZZZZZZZZZZZZZZZ"]
["544","SRCCPRD","Compte résultat début"]
["545","SRCCPRF","Compte résultat fin","ZZZZZZZZZZ"]
["546","SRCPORD","Poste résultat début"]
["547","SRCPORF","Poste résultat fin","ZZZZZZZZZZ"]
["548","SRCGARD","Segments résultat début"]
["549","SRCGARF","Segments résultat fin","ZZZZZZZZZZZZZZZZZZZZZZZZZZZZZZZZZZZZZZZZZZZZZZZZZZZZZZZZZZZZZZZZZZZZZZZZZZZZZZZZ"]
["550","SRCGBRD","CGR B résultat début"]
["551","SRCGBRF","CGR B résultat fin","ZZZZZZZZZZZZZZZZZZZZ"]
["552","SRCTYPD","Type début"]
["553","SRCTYPF","Type fin","ZZ"]
["554","SRCNATD","Nature début"]
["555","SRCNATF","Nature fin","ZZ"]
["556","SRCGEND","Genre début"]
["557","SRCGENF","Genre fin","ZZ"]
["558","SRCROLD","Rôle début"]
["559","SRCROLF","Rôle fin","Z"]
["560","SRCDCRD","Date de création début","19000101"]
["561","SRCDCRF","Date de création fin","20991231"]
["562","SRCUCRD","Utilisateur de création début","."]
["563","SRCUCRF","Utilisateur de création fin","ZZZZZZZZZZZZZZZZZZZZZZZZZZZZZZ"]
["564","SRCDDMD","Date de modification début"]
["565","SRCDDMF","Date de modification fin","20991231"]
["566","SRCUDMD","Utilisateur de modification début"]
["567","SRCUDMF","Utilisateur de modification fin","ZZZZZZZZZZZZZZZZZZZZZZZZZZZZZZ"]
["568","SMEMNED","Mnémonique début"]
["569","SMEMNEF","Mnémonique fin","ZZZZZZZZZZ"]
["570","SMEGESD","Gestionnaire entête début"]
["571","SMEGESF","Gestionnaire entête fin","ZZZZZZ"]
["572","SMEINFD","Informations entête début"]
["573","SMEINFF","Informations entête fin","zzzzzzzzzzzzzzzzzzzzzzzzzzzzzzzzzzzzzzzzzzzzzzzzzzzzzzzzzzzzzzzzzzzzzzzzzzzzzzzzzzzzzzzzzzzzzzzzzzzzzzzzzzzzzzzzzzzzzzzzzzzzzzzzzzzzzzzzzzzzzzzzzzzzzzzzzzzzzzzzzzzzzzzzzzzzzzzzzzzzzzzzzzzzzzzzzzzzzzzzzzzzzzzzzzzzzzzzzzzzzzzzzzzzzzzzzzzzzzzz"]
["574","SMEDDCD","Date comptable début"]
["575","SMEDDCF","Date comptable fin","20991231"]
["576","SMETROD","Numéro pièce début"]
["577","SMETROF","Numéro pièce fin","ZZZZZZZZZZ"]
["578","SMELBTD","Libellé tiers début"]
["579","SMELBTF","Libellé tiers fin","zzzzzzzzzzzzzzzzzzzzzzzzzzzzzzzzzzzzzzzz"]
["580","SMELBCD","Libellé commande début"]
["581","SMELBCF","Libellé commande fin","zzzzzzzzzzzzzzzzzzzzzzzzzzzzzzzzzzzzzzzz"]
["582","SMELBDD","Libellé document début"]
["583","SMELBDF","Libellé document fin","zzzzzzzzzzzzzzzzzzzzzzzzzzzzzzzzzzzzzzzz"]
["584","SMEOBSD","Observation début"]
["585","SMEOBSF","Observation fin","zzzzzzzzzzzzzzzzzzzzzzzzzzzzzzzzzzzzzzzz"]
["586","SMEDDSD","Date dernière mise à jour début"]
["587","SMEDDSF","Date dernière mise à jour fin","20991231"]
["588","SMETYPD","Type entête début"]
["589","SMETYPF","Type entête fin","ZZ"]
["590","SMENATD","Nature entête début"]
["591","SMENATF","Nature entête fin","ZZ"]
["592","SMEGEND","Genre entête début"]
["593","SMEGENF","Genre entête fin","ZZ"]
["594","SMEROLD","Rôle entête début"]
["595","SMEROLF","Rôle entête fin","Z"]
["596","SMLQTED","Quantité début","-999999999.999999"]
["597","SMLQTEF","Quantité fin","999999999.999999"]
["598","SMLTPXD","Type prix réel début"]
["599","SMLTPXF","Type prix réel fin","ZZZZ"]
["600","SMLPRXD","Prix réel début"]
["601","SMLPRXF","Prix réel fin","999999999.999999"]
["602","SMLTPED","Type prix estimé début"]
["603","SMLTPEF","Type prix estimé fin","ZZZZ"]
["604","SMLPXED","Prix estimé début"]
["605","SMLPXEF","Prix estimé fin","999999999.999999"]
["606","SMLNUMD","Numéro ligne début","0"]
["607","SMLNUMF","Numéro ligne fin","999999999"]
["608","SMLTXRD","Cours réel début","0.000000"]
["609","SMLTXRF","Cours réel fin","999999999.999999"]
["610","SMLDTRD","Date cours réel début","19000101"]
["611","SMLDTRF","Date cours réel fin","20991231"]
["612","SMLTXED","Cours estimé début","0.000000"]
["613","SMLTXEF","Cours estimé fin","999999999.999999"]
["614","SMLDTED","Date cours estimé début","19000101"]
["615","SMLDTEF","Date cours estimé fin","20991231"]
["616","SMLPDSD","Poids début"]
["617","SMLPDSF","Poids fin","999999999.999999"]
["618","SMLVOLD","Volume début"]
["619","SMLVOLF","Volume fin","999999999.999999"]
["620","SMLNBED","Nombre d'étiquettes début"]
["621","SMLNBEF","Nombre d'étiquettes fin","9999999"]
["622","SMLNBCD","Nombre de colis début"]
["623","SMLNBCF","Nombre de colis fin","9999999"]
["624","SMLINFD","Informations lignes début"]
["625","SMLINFF","Informations lignes fin","zzzzzzzzzzzzzzzzzzzzzzzzzzzzzzzzzzzzzzzzzzzzzzzzzzzzzzzzzzzzzzzzzzzzzzzzzzzzzzzzzzzzzzzzzzzzzzzzzzzzzzzzzzzzzzzzzzzzzzzzzzzzzzzzzzzzzzzzzzzzzzzzzzzzzzzzzzzzzzzzzzzzzzzzzzzzzzzzzzzzzzzzzzzzzzzzzzzzzzzzzzzzzzzzzzzzzzzzzzzzzzzzzzzzzzzzzzzzzzzz"]
["626","SMLPR1D","Code statistique 1 début"]
["627","SMLPR1F","Code statistique 1 fin","ZZZZZZZZZZ"]
["628","SMLPR2D","Code statistique 2 début"]
["629","SMLPR2F","Code statistique 2 fin","ZZZZZZZZZZ"]
["630","SMLPR3D","Code statistique 3 début"]
["631","SMLPR3F","Code statistique 3 fin","ZZZZZZZZZZ"]
["632","SMLGESD","Gestionnaire ligne début"]
["633","SMLGESF","Gestionnaire ligne fin","ZZZZZZ"]
["634","SMLDOMD","Domaine début"]
["635","SMLDOMF","Domaine fin","Z"]
["636","SMLTYPD","Type ligne début"]
["637","SMLTYPF","Type ligne fin","ZZ"]
["638","SMLNATD","Nature ligne début"]
["639","SMLNATF","Nature ligne fin","ZZ"]
["640","SMLGEND","Genre ligne début"]
["641","SMLGENF","Genre ligne fin","ZZ"]
["642","SMLROLD","Rôle ligne début"]
["643","SMLROLF","Rôle ligne fin","Z"]
["644","SMLUCRD","Utilisateur de création début","."]
["645","SMLUCRF","Utilisateur de création fin","ZZZZZZZZZZZZZZZZZZZZZZZZZZZZZZ"]
["646","SMLDCRD","Date de création début","19000101"]
["647","SMLDCRF","Date de création fin","20991231"]
["648","SMLUDMD","Utilisateur de modification début"]
["649","SMLUDMF","Utilisateur de modification fin","ZZZZZZZZZZZZZZZZZZZZZZZZZZZZZZ"]
["650","SMLDDMD","Date de modification début"]
["651","SMLDDMF","Date de modification fin","20991231"]
["652","SMLLOPD","Lot de production début","."]
["653","SMLLOPF","Lot de production fin","ZZZZZZZZZZ"]
["654","SMLMOSD","Mode de stockage début","."]
["655","SMLMOSF","Mode de stockage fin","ZZZZ"]
["656","SMLDMOD","Emplacement origine début","."]
["657","SMLDMOF","Emplacement origine fin","ZZZZZZZZZZ"]
["658","SMLCNTD","Contenant début"]
["659","SMLCNTF","Contenant fin","ZZZZZZZZZZZZZZZZZZZZ"]
["660","SMLDTAD","Date d'annulation comptable début"]
["661","SMLDTAF","Date d'annulation comptable fin","20991231"]
["662","SMLTRRD","Cours réel reporting début"]
["663","SMLTRRF","Cours réel reporting fin","999999999.999999"]
["664","SMLDRRD","Date cours réel reporting début"]
["665","SMLDRRF","Date cours réel reporting fin","20991231"]
["666","SMLTRED","Cours estimé reporting début"]
["667","SMLTREF","Cours estimé reporting fin","999999999.999999"]
["668","SMLDRED","Date cours estimé reporting début"]
["669","SMLP01D","Paramètre 01 début"]
["670","SMLDREF","Date cours estimé reporting fin","20991231"]
["671","SMLP01F","Paramètre 01 fin","ZZZZZZZZZZ"]
["672","SMLP02D","Paramètre 02 début"]
["673","SMLP02F","Paramètre 02 fin","ZZZZZZZZZZ"]
["674","SMLP03D","Paramètre 03 début"]
["675","SMLP03F","Paramètre 03 fin","ZZZZZZZZZZ"]
["676","SMLP04D","Paramètre 04 début"]
["677","SMLP04F","Paramètre 04 fin","ZZZZZZZZZZ"]
["678","SMLP05D","Paramètre 05 début"]
["679","SMLP05F","Paramètre 05 fin","ZZZZZZZZZZ"]
["680","SMLP06D","Paramètre 06 début"]
["681","SMLP06F","Paramètre 06 fin","ZZZZZZZZZZ"]
["682","SMLP07D","Paramètre 07 début"]
["683","SMLP07F","Paramètre 07 fin","ZZZZZZZZZZ"]
["684","SMLP08D","Paramètre 08 début"]
["685","SMLP08F","Paramètre 08 fin","ZZZZZZZZZZ"]
["686","SMLP09D","Paramètre 09 début"]
["687","SMLP09F","Paramètre 09 fin","ZZZZZZZZZZ"]
["688","SMLP10D","Paramètre 10 début"]
["689","SMLP10F","Paramètre 10 fin","ZZZZZZZZZZ"]
["690","SMLP11D","Paramètre 11 début"]
["691","SMLP11F","Paramètre 11 fin","ZZZZZZZZZZ"]
["692","SMLP12D","Paramètre 12 début"]
["693","SMLP12F","Paramètre 12 fin","ZZZZZZZZZZ"]
["694","SMLP13D","Paramètre 13 début"]
["695","SNMCLED","Code confidentialité début"]
["696","SMLP13F","Paramètre 13 fin","ZZZZZZZZZZ"]
["697","SMLP14D","Paramètre 14 début"]
["698","SNMCLEF","Code confidentialité fin","9999"]
["699","SNMSEND","Sens début","."]
["700","SMLP14F","Paramètre 14 fin","ZZZZZZZZZZ"]
["701","SNMSENF","Sens fin","Z"]
["702","SMLP15D","Paramètre 15 début"]
["703","SNMDEPD","Dépôt début"]
["704","SMLP15F","Paramètre 15 fin","ZZZZZZZZZZ"]
["705","SMLLOSD","Lot supérieur début"]
["706","SNMDEPF","Dépôt fin","ZZZZZZ"]
["707","SNMCGSD","Classe générée début","."]
["708","SMLLOSF","Lot supérieur fin","ZZZZZZZZZZ"]
["709","SMLLOFD","Lot fournisseur début"]
["710","SNMCGSF","Classe générée fin","Z"]
["711","SNMQQRD","Classe quarantaine début","."]
["712","SMLLOFF","Lot fournisseur fin","ZZZZZZZZZZZZZ"]
["713","SNMQQRF","Classe quarantaine fin","Z"]
["714","SMLSERD","Numéro de série début"]
["715","SNMECAD","Classe écart inventaire début","."]
["716","SMLSERF","Numéro de série fin","ZZZZZZZZZZZZ"]
["717","SMLSTQD","Statut qualité début"]
["718","SNMECAF","Classe écart inventaire fin","Z"]
["719","SMLSTQF","Statut qualité fin","ZZZZ"]
["720","SNMECQD","Classe écart inventaire quarantaine début","."]
["721","SNMECQF","Classe écart inventaire quarantaine fin","Z"]
["722","SNMSTKD","Mise à jour temps réel début","."]
["723","SNMSTKF","Mise à jour temps réel fin","ZZ"]
["724","SNMSSKD","Ruptures signalées début","."]
["725","SNMSSKF","Ruptures signalées fin","Z"]
["726","SNMCSKD","Contrôle bloquant début","."]
["727","SNMCSKF","Contrôle bloquant fin","Z"]
["728","SNMQTND","Quantité négative autorisée début","."]
["729","SNMQTNF","Quantité négative autorisée fin","Z"]
["730","SNMTROD","Classe comptabilisable début","."]
["731","SNMTROF","Classe comptabilisable fin","Z"]
["732","SNMTRSD","Transfert en statistiques début","."]
["733","SNMTRSF","Transfert en statistiques fin","Z"]
["734","SNMBUDD","Contrôle budgétaire début","."]
["735","SNMBUDF","Contrôle budgétaire fin","Z"]
["736","SNMETAD","Etat début","."]
["737","SNMETAF","Etat fin","Z"]
["738","SNMCPSD","Compte stock début"]
["739","SNMCPSF","Compte stock fin","ZZZZZZZZZZ"]
["740","SNMGASD","CGR A stock début"]
["741","SNMGASF","CGR A stock fin","ZZZZZZZZZZZZZZZZZZZZZZZZZZZZZZZZZZZZZZZZZZZZZZZZZZZZZZZZZZZZZZZZZZZZZZZZZZZZZZZZ"]
["742","SNMGBSD","CGR B stock début"]
["743","SNMGBSF","CGR B stock fin","ZZZZZZZZZZZZZZZZZZZZ"]
["744","SNMCPRD","Compte résultat début"]
["745","SNMCPRF","Compte résultat fin","ZZZZZZZZZZ"]
["746","SNMGARD","CGR A résultat début"]
["747","SNMGARF","CGR A résultat fin","ZZZZZZZZZZZZZZZZZZZZZZZZZZZZZZZZZZZZZZZZZZZZZZZZZZZZZZZZZZZZZZZZZZZZZZZZZZZZZZZZ"]
["748","SNMGBRD","CGR B résultat début"]
["749","SNMGBRF","CGR B résultat fin","ZZZZZZZZZZZZZZZZZZZZ"]
["750","SNMINFD","Informations début"]
["751","SNMINFF","Informations fin","zzzzzzzzzzzzzzzzzzzzzzzzzzzzzzzzzzzzzzzzzzzzzzzzzzzzzzzzzzzzzzzzzzzzzzzzzzzzzzzzzzzzzzzzzzzzzzzzzzzzzzzzzzzzzzzzzzzzzzzzzzzzzzzzzzzzzzzzzzzzzzzzzzzzzzzzzzzzzzzzzzzzzzzzzzzzzzzzzzzzzzzzzzzzzzzzzzzzzzzzzzzzzzzzzzzzzzzzzzzzzzzzzzzzzzzzzzzzzzzz"]
["752","SNMPRMD","Paramètre début"]
["753","SNMPRMF","Paramètre fin","zzzzzzzzzzzzzzzzzzzzzzzzzzzzzzzzzzzzzzzz"]
["754","SNMTYPD","Type début"]
["755","SNMTYPF","Type fin","ZZ"]
["756","SNMNATD","Nature début"]
["757","SNMNATF","Nature fin","ZZ"]
["758","SNMGEND","Genre début"]
["759","SNMGENF","Genre fin","ZZ"]
["760","SNMROLD","Rôle début"]
["761","SNMROLF","Rôle fin","Z"]
["762","SNMDCRD","Date de création début","19000101"]
["763","SNMDCRF","Date de création fin","20991231"]
["764","SNMUCRD","Utilisateur de création début","."]
["765","SNMUCRF","Utilisateur de création fin","ZZZZZZZZZZZZZZZZZZZZZZZZZZZZZZ"]
["766","SNMDDMD","Date de modification début"]
["767","SNMDDMF","Date de modification fin","20991231"]
["768","SNMUDMD","Utilisateur de modification début"]
["769","SNMUDMF","Utilisateur de modification fin","ZZZZZZZZZZZZZZZZZZZZZZZZZZZZZZ"]
["770","SNMMSKD","Mise à jour des stocks début","."]
["771","SNMMSKF","Mise à jour des stocks fin","Z"]
["772","SNMLOTD","Création lot automatique début","."]
["773","SNMLOTF","Création lot automatique fin","Z"]
["774","SNMJROD","Journal transfert début"]
["775","SNMJROF","Journal transfert fin","ZZZZZZ"]
["776","SNMTPPD","Type de pièce en compta début"]
["777","SNMTPPF","Type de pièce en compta fin","ZZZZ"]
["778","SNMTPED","Type d'écriture compta début"]
["779","SNMTPEF","Type d'écriture compta fin","ZZ"]
["780","SNMRECD","Lien avec début","."]
["781","SNMRECF","Lien avec fin","Z"]
["782","SNMTVCD","Transfert comptable début"]
["783","SNMTVCF","Transfert comptable fin","ZZZZ"]
["784","SNMTACD","Transfert comptable d'annulation début"]
["785","SNMTACF","Transfert comptable d'annulation fin","ZZZZ"]
["786","SNMTEDD","Type d'écriture compta (imp. secondaire) début"]
["787","SNMTEDF","Type d'écriture compta (imp. secondaire) fin","ZZ"]
["788","SNMTPDD","Type de pièce en compta (imp. secondaire) début"]
["789","SNMTPDF","Type de pièce en compta (imp. secondaire) fin","ZZZZ"]
["790","SNMJRDD","Journal transfert (imputation secondaire) début"]
["791","SNMJRDF","Journal transfert (imputation secondaire) fin","ZZZZZZ"]
["792","SNMTVDD","Transfert comptable (imputation secondaire) début"]
["793","SNMTVDF","Transfert comptable (imputation secondaire) fin","ZZZZ"]
["794","SNMTADD","Trf. comptable d'annul. (imp. secondaire) début"]
["795","SNMTADF","Trf. comptable d'annul. (imp. secondaire) fin","ZZZZ"]
["796","SNMTSTD","Type de statistiques début","."]
["797","SNMTSTF","Type de statistiques fin","ZZ"]
["798","SDPMNED","Mnémonique début"]
["799","SDPMNEF","Mnémonique fin","ZZZZZZZZZZ"]
["800","SDPCLED","Code confidentialité début"]
["801","SDPCLEF","Code confidentialité fin","9999"]
["802","SDPDPHD","Dépôt physique début","."]
["803","SDPDPHF","Dépôt physique fin","ZZZZZZ"]
["804","SDPEPHD","Etablissement physique début","."]
["805","SDPEPHF","Etablissement physique fin","ZZZZZZ"]
["806","SDPTIED","Tiers début","."]
["807","SDPTIEF","Tiers fin","ZZZZZZZZZZ"]
["808","SDPTIAD","Adresse du tiers début","."]
["809","SDPTIAF","Adresse du tiers fin","ZZZZZZZZZZ"]
["810","SDPDEPD","Dépôt supérieur début"]
["811","SDPDEPF","Dépôt supérieur fin","ZZZZZZ"]
["812","SDPRGPD","Regroupement début"]
["813","SDPRGPF","Regroupement fin","ZZZZZZ"]
["814","SDPGEMD","Gestion emplacement début","."]
["815","SDPGEMF","Gestion emplacement fin","Z"]
["816","SDPACHD","Dépôt d'achat début","."]
["817","SDPACHF","Dépôt d'achat fin","Z"]
["818","SDPVTED","Dépôt de vente début","."]
["819","SDPVTEF","Dépôt de vente fin","Z"]
["820","SDPSTKD","Dépôt de stock début","."]
["821","SDPSTKF","Dépôt de stock fin","Z"]
["822","SDPPRDD","Dépôt de production début","."]
["823","SDPPRDF","Dépôt de production fin","Z"]
["824","SDPETAD","Etat début","."]
["825","SDPETAF","Etat fin","Z"]
["826","SDPCPTD","Compte début"]
["827","SDPCPTF","Compte fin","ZZZZZZZZZZ"]
["828","SDPCGRD","CGR début"]
["829","SDPCGRF","CGR fin","ZZZZZZZZZZZZZZZZZZZZZZZZZZZZZZZZZZZZZZZZZZZZZZZZZZZZZZZZZZZZZZZZZZZZZZZZZZZZZZZZ"]
["830","SDPGCOD","Gestionnaire commercial début"]
["831","SDPGCOF","Gestionnaire commercial fin","ZZZZZZ"]
["832","SDPGTLD","Gestionnaire technique début"]
["833","SDPGTLF","Gestionnaire technique fin","ZZZZZZ"]
["834","SDPGCPD","Gestionnaire comptable début"]
["835","SDPGCPF","Gestionnaire comptable fin","ZZZZZZ"]
["836","SDPINFD","Informations début"]
["837","SDPINFF","Informations fin","zzzzzzzzzzzzzzzzzzzzzzzzzzzzzzzzzzzzzzzzzzzzzzzzzzzzzzzzzzzzzzzzzzzzzzzzzzzzzzzzzzzzzzzzzzzzzzzzzzzzzzzzzzzzzzzzzzzzzzzzzzzzzzzzzzzzzzzzzzzzzzzzzzzzzzzzzzzzzzzzzzzzzzzzzzzzzzzzzzzzzzzzzzzzzzzzzzzzzzzzzzzzzzzzzzzzzzzzzzzzzzzzzzzzzzzzzzzzzzzz"]
["838","SDPSITD","Situation début"]
["839","SDPSITF","Situation fin","Z"]
["840","SDPDEVD","Devise début"]
["841","SDPDEVF","Devise fin","ZZZZZZ"]
["842","SDPTYPD","Type début"]
["843","SDPTYPF","Type fin","ZZ"]
["844","SDPNATD","Nature début"]
["845","SDPNATF","Nature fin","ZZ"]
["846","SDPGEND","Genre début"]
["847","SDPGENF","Genre fin","ZZ"]
["848","SDPROLD","Rôle début"]
["849","SDPROLF","Rôle fin","Z"]
["850","SDPDCRD","Date de création début","19000101"]
["851","SDPDCRF","Date de création fin","20991231"]
["852","SDPUCRD","Utilisateur de création début","."]
["853","SDPUCRF","Utilisateur de création fin","ZZZZZZZZZZZZZZZZZZZZZZZZZZZZZZ"]
["854","SDPDDMD","Date de modification début"]
["855","SDPDDMF","Date de modification fin","20991231"]
["856","SDPUDMD","Utilisateur de modification début"]
["857","SDPUDMF","Utilisateur de modification fin","ZZZZZZZZZZZZZZZZZZZZZZZZZZZZZZ"]
["858","SMLDPED","Date de péremption début"]
["859","SMLDPEF","Date de péremption fin","20991231"]
["860","SMLDPID","Date de péremption initiale début"]
["861","SMLDPIF","Date de péremption initiale fin","20991231"]
["862","SMLQUCD","Quantité en unité de consommation début"]
["863","SMLQUCF","Quantité en unité de consommation fin","999999999.999999"]
["864","SMLUCOD","Unité de consommation début"]
["865","SMLUCOF","Unité de consommation fin","ZZZZZZ"]
["866","SMLCCSD","Coefficient conso. à stock début (dividende)"]
["867","SMLCCSF","Coefficient conso. à stock fin (dividende)","999999999.999999"]
["868","SMLDCSD","Coefficient conso. à stock début (diviseur)"]
["869","SMLDCSF","Coefficient conso. à stock fin (diviseur)","999999999.999999"]
["870","SMLEAND","Code EAN début"]
["871","SMLEANF","Code EAN fin","ZZZZZZZZZZZZZZZZZ"]
["872","SMLHCRD","Heure de création début"]
["873","SMLHCRF","Heure de création fin","235959"]
["874","SMLHDMD","Heure de modification début"]
["875","SMLHDMF","Heure de modification fin","235959"]
["876","SMLTP2D","Type prix réel (imput. secondaire) début"]
["877","SMLTP2F","Type prix réel (imput. secondaire) fin","ZZZZ"]
["878","SMLPX2D","Prix réel (imput. secondaire) début"]
["879","SMLPX2F","Prix réel (imput. secondaire) fin","999999999.999999"]
["880","SMLTP3D","Type prix estimé (imput. secondaire) début"]
["881","SMLTP3F","Type prix estimé (imput. secondaire) fin","ZZZZ"]
["882","SMLPX3D","Prix estimé (imput. secondaire) début"]
["883","SMLPX3F","Prix estimé (imput. secondaire) fin","999999999.999999"]
["884","SMLTX2D","Cours réel (imput. secondaire) début"]
["885","SMLTX2F","Cours réel (imput. secondaire) fin","999999999.999999"]
["886","SMLDT2D","Date cours réel (imput. secondaire) début"]
["887","SMLDT2F","Date cours réel (imput. secondaire) fin","20991231"]
["888","SMLTX3D","Cours estimé (imput. secondaire) début"]
["889","SMLTX3F","Cours estimé (imput. secondaire) fin","999999999.999999"]
["890","SMLDT3D","Date cours estimé (imput. secondaire) début"]
["891","SMLDT3F","Date cours estimé (imput. secondaire) fin","20991231"]
["892","SMLTR2D","Cours réel reporting (imput. secondaire) début"]
["893","SMLTR2F","Cours réel reporting (imput. secondaire) fin","999999999.999999"]
["894","SMLDR2D","Date cours réel report. (imput. secondaire) début"]
["895","SMLDR2F","Date cours réel report. (imput. secondaire) fin","20991231"]
["896","SMLTR3D","Cours estimé (imput. secondaire) début"]
["897","SMLTR3F","Cours estimé (imput. secondaire) fin","999999999.999999"]
["898","SMLDR3D","Date cours estimé (imput. secondaire) début"]
["899","SMLDR3F","Date cours estimé (imput. secondaire) fin","20991231"]
["900","SMLDADD","Date d'annul. comptable (imput. secondaire) début"]
["901","SMLDADF","Date d'annul. comptable (imput. secondaire) fin","20991231"]
["902","SMLTADD","Pièce d'annul. comptable (imput. secondaire) début"]
["903","SMLTADF","Pièce d'annul. comptable (imput. secondaire) fin","ZZZZZZZZZZ"]
["904","SCSPR1DD","CGR débit : paramètre 1 début"]
["905","SCSPR1DF","CGR débit : paramètre 1 fin","ZZZZZZZZZZ"]
["906","SCSPR2DD","CGR débit : paramètre 2 début"]
["907","SCSPR2DF","CGR débit : paramètre 2 fin","ZZZZZZZZZZ"]
["908","SCSPR3DD","CGR débit : paramètre 3 début"]
["909","SCSPR3DF","CGR débit : paramètre 3 fin","ZZZZZZZZZZ"]
["910","SCSPR4DD","CGR débit : paramètre 4 début"]
["911","SCSPR4DF","CGR débit : paramètre 4 fin","ZZZZZZZZZZ"]
["912","SCSPR5DD","CGR débit : paramètre 5 début"]
["913","SCSPR5DF","CGR débit : paramètre 5 fin","ZZZZZZZZZZ"]
["914","SCSPR6DD","CGR débit : paramètre 6 début"]
["915","SCSPR6DF","CGR débit : paramètre 6 fin","ZZZZZZZZZZ"]
["916","SCSPR7DD","CGR débit : paramètre 7 début"]
["917","SCSPR7DF","CGR débit : paramètre 7 fin","ZZZZZZZZZZ"]
["918","SCSPR8DD","CGR débit : paramètre 8 début"]
["919","SCSPR8DF","CGR débit : paramètre 8 fin","ZZZZZZZZZZ"]
["920","SCSPR9DD","CGR débit : paramètre 9 début"]
["921","SCSPR9DF","CGR débit : paramètre 9 fin","ZZZZZZZZZZ"]
["922","SCSP10DD","CGR débit : paramètre 10 début"]
["923","SCSP10DF","CGR débit : paramètre 10 fin","ZZZZZZZZZZ"]
["924","SCSGESDD","CGR débit : gestionnaire début"]
["925","SCSGESDF","CGR débit : gestionnaire fin","ZZZZZZ"]
["926","SCSMNEDD","CGR débit : mnémonique début"]
["927","SCSMNEDF","CGR débit : mnémonique fin","ZZZZZZZZZZ"]
["928","SCSFAMDD","CGR Débit : Famille de CGR début"]
["929","SCSFAMDF","CGR Débit : Famille de CGR fin","ZZZZZZZZZZ"]
["930","SCSGRPDD","CGR débit : groupe début"]
["931","SCSGRPDF","CGR débit : groupe fin","ZZZZZZZZZZ"]
["932","SCSENSDD","CGR débit : ensemble début"]
["933","SCSENSDF","CGR débit : ensemble fin","ZZZZZZZZZZ"]
["934","SCSNATDD","CGR débit : nature début"]
["935","SCSNATDF","CGR débit : nature fin","ZZ"]
["936","SCSGENDD","CGR débit : genre début"]
["937","SCSGENDF","CGR débit : genre fin","ZZ"]
["938","SCSROLDD","CGR débit : rôle début"]
["939","SCSROLDF","CGR débit : rôle fin","Z"]
["940","SCSUCRDD","CGR débit : utilisateur de création début","."]
["941","SCSUCRDF","CGR débit : utilisateur de création fin","ZZZZZZZZZZZZZZZZZZZZZZZZZZZZZZ"]
["942","SCSDCRDD","CGR débit : date de création début","19000101"]
["943","SCSDCRDF","CGR débit : date de création fin","20991231"]
["944","SCSUDMDD","CGR débit : utilisateur de modification début"]
["945","SCSUDMDF","CGR débit : utilisateur de modification fin","ZZZZZZZZZZZZZZZZZZZZZZZZZZZZZZ"]
["946","SCSDDMDD","CGR Débit : Date de modification début"]
["947","SCSDDMDF","CGR Débit : Date de modification début","20991231"]
["948","SCSPR1CD","CGR crédit : paramètre 1 début"]
["949","SCSPR1CF","CGR crédit : paramètre 1 fin","ZZZZZZZZZZ"]
["950","SCSPR2CD","CGR crédit : paramètre 2 début"]
["951","SCSPR2CF","CGR crédit : paramètre 2 fin","ZZZZZZZZZZ"]
["952","SCSPR3CD","CGR crédit : paramètre 3 début"]
["953","SCSPR3CF","CGR crédit : paramètre 3 fin","ZZZZZZZZZZ"]
["954","SCSPR4CD","CGR crédit : paramètre 4 début"]
["955","SCSPR4CF","CGR crédit : paramètre 4 fin","ZZZZZZZZZZ"]
["956","SCSPR5CD","CGR crédit : paramètre 5 début"]
["957","SCSPR5CF","CGR crédit : paramètre 5 fin","ZZZZZZZZZZ"]
["958","SCSPR6CD","CGR crédit : paramètre 6 début"]
["959","SCSPR6CF","CGR crédit : paramètre 6 fin","ZZZZZZZZZZ"]
["960","SCSPR7CD","CGR crédit : paramètre 7 début"]
["961","SCSPR7CF","CGR crédit : paramètre 7 fin","ZZZZZZZZZZ"]
["962","SCSPR8CD","CGR crédit : paramètre 8 début"]
["963","SCSPR8CF","CGR crédit : paramètre 8 fin","ZZZZZZZZZZ"]
["964","SCSPR9CD","CGR crédit : paramètre 9 début"]
["965","SCSPR9CF","CGR crédit : paramètre 9 fin","ZZZZZZZZZZ"]
["966","SCSP10CD","CGR crédit : paramètre 10 début"]
["967","SCSP10CF","CGR crédit : paramètre 10 fin","ZZZZZZZZZZ"]
["968","SCSGESCD","CGR crédit : gestionnaire début"]
["969","SCSGESCF","CGR crédit : gestionnaire fin","ZZZZZZ"]
["970","SCSMNECD","CGR crédit : mnémonique début"]
["971","SCSMNECF","CGR crédit : mnémonique fin","ZZZZZZZZZZ"]
["972","SCSFAMCD","CGR Crédit : Famille de CGR début"]
["973","SCSFAMCF","CGR Crédit : Famille de CGR fin","ZZZZZZZZZZ"]
["974","SCSGRPCD","CGR crédit : groupe début"]
["975","SCSGRPCF","CGR crédit : groupe fin","ZZZZZZZZZZ"]
["976","SCSENSCD","CGR crédit : ensemble début"]
["977","SCSENSCF","CGR crédit : ensemble fin","ZZZZZZZZZZ"]
["978","SCSNATCD","CGR crédit : nature début"]
["979","SCSNATCF","CGR crédit : nature fin","ZZ"]
["980","SCSGENCD","CGR crédit : genre début"]
["981","SCSGENCF","CGR crédit : genre fin","ZZ"]
["982","SCSROLCD","CGR crédit : rôle début"]
["983","SCSROLCF","CGR crédit : rôle fin","Z"]
["984","SCSUCRCD","CGR crédit : utilisateur de création début","."]
["985","SCSUCRCF","CGR crédit : utilisateur de création fin","ZZZZZZZZZZZZZZZZZZZZZZZZZZZZZZ"]
["986","SCSDCRCD","CGR crédit : date de création début","19000101"]
["987","SCSDCRCF","CGR crédit : date de création fin","20991231"]
["988","SCSUDMCD","CGR crédit : utilisateur de modification début"]
["989","SCSUDMCF","CGR crédit : utilisateur de modification fin","ZZZZZZZZZZZZZZZZZZZZZZZZZZZZZZ"]
["990","SCSDDMCD","CGR Crédit : Date de modification début"]
["991","SCSDDMCF","CGR Crédit : Date de modification début","20991231"]
["992","SRUQTE1","Edition des quantités en rupture 1","A"]
["993","SRUQTE2","Edition des quantités en rupture 2","A"]
["994","SRUQTE3","Edition des quantités en rupture 3","A"]
["995","SRUQTE4","Edition des quantités en rupture 4","A"]
["996","SRUQTE5","Edition des quantités en rupture 5","A"]
["997","SRUQTE6","Edition des quantités en rupture 6","A"]
["998","SRUQTE7","Edition des quantités en rupture 7","A"]
["999","SRUQTE8","Edition des quantités en rupture 8","A"]
["1000","SRUQTE9","Edition des quantités en rupture 9","A"]
["1001","SRUMNT1","Edition des montants en rupture 1","A"]
["1002","SRUMNT2","Edition des montants en rupture 2","A"]
["1003","SRUMNT3","Edition des montants en rupture 3","A"]
["1004","SRUMNT4","Edition des montants en rupture 4","A"]
["1005","SRUMNT5","Edition des montants en rupture 5","A"]
["1006","SRUMNT6","Edition des montants en rupture 6","A"]
["1007","SRUMNT7","Edition des montants en rupture 7","A"]
["1008","SRUMNT8","Edition des montants en rupture 8","A"]
["1009","SRUMNT9","Edition des montants en rupture 9","A"]
["1010","SMLSTKD","Stock début","."]
["1011","SMLSTKF","Stock fin","Z"]
["1012","SMLTRAD","Pièce d'annulation comptable début"]
["1013","SMLTRAF","Pièce d'annul. comptable (imput. secondaire) fin","ZZZZZZZZZZ"]
["1014","SMOMNED","Mnémonique début"]
["1015","SMOMNEF","Mnémonique fin","ZZZZZZZZZZ"]
["1016","SMOGESD","Gestionnaire début"]
["1017","SMOGESF","Gestionnaire fin","ZZZZZZ"]
["1018","SMOBESD","Utilisé par les besoins début"]
["1019","SMOBESF","Utilisé par les besoins fin","Z"]
["1020","SMOREAD","Soumis à réappro. début"]
["1021","SMOREAF","Soumis à réappro. fin","Z"]
["1022","SMOCPTD","Envoi en comptabilité début"]
["1023","SMOCPTF","Envoi en comptabilité fin","Z"]
["1024","SMOTRED","Groupe avec libellé édité début"]
["1025","SMOTREF","Groupe avec libellé édité fin","ZZZZZZZZZZZZZZZZZZZZZZZZZZZZZZ"]
["1026","SMOTRGD","Groupe non pris en comptabilité début"]
["1027","SMOTRGF","Groupe non pris en comptabilité fin","ZZZZZZZZZZZZZZZZZZZZZZZZZZZZZZ"]
["1028","SMOETAD","Etat début","."]
["1029","SMOETAF","Etat fin","Z"]
["1030","SMOTYPD","Type début"]
["1031","SMOTYPF","Type fin","ZZ"]
["1032","SMONATD","Nature début"]
["1033","SMONATF","Nature fin","ZZ"]
["1034","SMOGEND","Genre début"]
["1035","SMOGENF","Genre fin","ZZ"]
["1036","SMOROLD","Rôle début"]
["1037","SMOROLF","Rôle fin","Z"]
["1038","SMODCRD","Date de création début","19000101"]
["1039","SMODCRF","Date de création fin","20991231"]
["1040","SMOUCRD","Utilisateur de création début","."]
["1041","SMOUCRF","Utilisateur de création fin","ZZZZZZZZZZZZZZZZZZZZZZZZZZZZZZ"]
["1042","SMODDMD","Date de modification début"]
["1043","SMODDMF","Date de modification fin","20991231"]
["1044","SMOUDMD","Utilisateur de modification début"]
["1045","SMOUDMF","Utilisateur de modification fin","ZZZZZZZZZZZZZZZZZZZZZZZZZZZZZZ"]
["1046","SMORRSD","Regroupement réservation début","."]
["1047","SMORRSF","Regroupement réservation fin","ZZZZ"]
["1048","SDMMNED","Mnémonique début"]
["1049","SDMMNEF","Mnémonique fin","ZZZZZZZZZZ"]
["1050","SDMGESD","Gestionnaire début"]
["1051","SDMGESF","Gestionnaire fin","ZZZZZZ"]
["1052","SDMDEMD","Emplacement supérieur début"]
["1053","SDMDEMF","Emplacement supérieur fin","ZZZZZZZZZZ"]
["1054","SDMBATD","Bâtiment début"]
["1055","SDMBATF","Bâtiment fin","ZZZZ"]
["1056","SDMLOCD","Local début"]
["1057","SDMLOCF","Local fin","ZZZZZZ"]
["1058","SDMALLD","Allée début"]
["1059","SDMALLF","Allée fin","ZZZZZZ"]
["1060","SDMTRVD","Travée début"]
["1061","SDMTRVF","Travée fin","ZZZZZZ"]
["1062","SDMPOSD","Position début"]
["1063","SDMPOSF","Position fin","ZZZZZZ"]
["1064","SDMALTD","Hauteur début"]
["1065","SDMALTF","Hauteur fin","ZZZZZZ"]
["1066","SDMETAD","Etat début","."]
["1067","SDMETAF","Etat fin","Z"]
["1068","SDMTYPD","Type début"]
["1069","SDMTYPF","Type fin","ZZ"]
["1070","SDMNATD","Nature début"]
["1071","SDMNATF","Nature fin","ZZ"]
["1072","SDMGEND","Genre début"]
["1073","SDMGENF","Genre fin","ZZ"]
["1074","SDMROLD","Rôle début"]
["1075","SDMROLF","Rôle fin","Z"]
["1076","SDMUCRD","Utilisateur de création début","."]
["1077","SDMUCRF","Utilisateur de création fin","ZZZZZZZZZZZZZZZZZZZZZZZZZZZZZZ"]
["1078","SDMDCRD","Date de création début","19000101"]
["1079","SDMDCRF","Date de création fin","20991231"]
["1080","SDMUDMD","Utilisateur de modification début"]
["1081","SDMUDMF","Utilisateur de modification fin","ZZZZZZZZZZZZZZZZZZZZZZZZZZZZZZ"]
["1082","SDMDDMD","Date de modification début"]
["1083","SDMDDMF","Date de modification fin","20991231"]
["1084","SDMCAQD","Capacité quantité début"]
["1085","SDMCAQF","Capacité quantité fin","999999999.999999"]
["1086","SDMUNQD","Unité quantité début"]
["1087","SDMUNQF","Unité quantité fin","ZZZZZZ"]
["1088","SDMCTQD","Contrôle quantité début","."]
["1089","SDMCTQF","Contrôle quantité fin","Z"]
["1090","SDMCAVD","Capacité volume début"]
["1091","SDMCAVF","Capacité volume fin","999999999.999999"]
["1092","SDMUNVD","Unité volume début"]
["1093","SDMUNVF","Unité volume fin","ZZZZZZ"]
["1094","SDMCTVD","Contrôle volume début","."]
["1095","SDMCTVF","Contrôle volume fin","Z"]
["1096","SDMCAPD","Capacité poids début"]
["1097","SDMCAPF","Capacité poids fin","999999999.999999"]
["1098","SDMUNPD","Unité poids début"]
["1099","SDMUNPF","Unité poids fin","ZZZZZZ"]
["1100","SDMCTPD","Contrôle poids début","."]
["1101","SDMCTPF","Contrôle poids fin","Z"]
["1102","SDMSTKD","Utilisation en Stock début","."]
["1103","SDMSTKF","Utilisation en Stock fin","ZZ"]
["1104","SDMACHD","Utilisation dans les achats début","."]
["1105","SDMACHF","Utilisation dans les achats fin","ZZ"]
["1106","SDMVTED","Utilisation dans les ventes début","."]
["1107","SDMVTEF","Utilisation dans les ventes fin","ZZ"]
["1108","SDMPRDD","Utilisation en production début","."]
["1109","SDMPRDF","Utilisation en production fin","ZZ"]
["1110","SDMQAMD","Utilisation en maintenance début","."]
["1111","SDMQAMF","Utilisation en maintenance fin","ZZ"]
["1112","SDMGCOD","Gestion des contenants début","."]
["1113","SDMGCOF","Gestion des contenants fin","Z"]
["1114","SDMORDD","Ordre début"]
["1115","SDMORDF","Ordre fin","9999"]
["1116","SDMCATD","Catégorie début"]
["1117","SDMCATF","Catégorie fin","ZZZZZZZZZZ"]
["1118","SDMREAD","Prise en compte dans les calculs de réappro. début","."]
["1119","SDMREAF","Prise en compte dans les calculs de réappro. fin","Z"]
["1120","SDMP01D","Paramètre 01 début"]
["1121","SDMP01F","Paramètre 01 fin","ZZZZZZZZZZ"]
["1122","SDMP02D","Paramètre 02 début"]
["1123","SDMP02F","Paramètre 02 fin","ZZZZZZZZZZ"]
["1124","SDMP03D","Paramètre 03 début"]
["1125","SDMP03F","Paramètre 03 fin","ZZZZZZZZZZ"]
["1126","SDMP04D","Paramètre 04 début"]
["1127","SDMP04F","Paramètre 04 fin","ZZZZZZZZZZ"]
["1128","SDMP05D","Paramètre 05 début"]
["1129","SDMP05F","Paramètre 05 fin","ZZZZZZZZZZ"]
["1130","SDMP06D","Paramètre 06 début"]
["1131","SDMP06F","Paramètre 06 fin","ZZZZZZZZZZ"]
["1132","SDMP07D","Paramètre 07 début"]
["1133","SDMP07F","Paramètre 07 fin","ZZZZZZZZZZ"]
["1134","SDMP08D","Paramètre 08 début"]
["1135","SDMP08F","Paramètre 08 fin","ZZZZZZZZZZ"]
["1136","SDMP09D","Paramètre 09 début"]
["1137","SDMP09F","Paramètre 09 fin","ZZZZZZZZZZ"]
["1138","SDMP10D","Paramètre 10 début"]
["1139","SDMP10F","Paramètre 10 fin","ZZZZZZZZZZ"]
["1140","SDMP11D","Paramètre 11 début"]
["1141","SDMP11F","Paramètre 11 fin","zzzzzzzzzzzzzzzzzzzz"]
["1142","SDMP12D","Paramètre 12 début"]
["1143","SDMP12F","Paramètre 12 fin","zzzzzzzzzzzzzzzzzzzz"]
["1144","SDMP13D","Paramètre 13 début"]
["1145","SDMP13F","Paramètre 13 fin","zzzzzzzzzzzzzzzzzzzz"]
["1146","SDMP14D","Paramètre 14 début"]
["1147","SDMP14F","Paramètre 14 fin","zzzzzzzzzzzzzzzzzzzz"]
["1148","SDMP15D","Paramètre 15 début"]
["1149","SDMP15F","Paramètre 15 fin","zzzzzzzzzzzzzzzzzzzz"]
["1150","SDNDEMD","Emplacement début"]
["1151","SDNDEMF","Emplacement fin","ZZZZZZZZZZ"]
["1152","SDNGESD","Gestionnaire début"]
["1153","SDNGESF","Gestionnaire fin","ZZZZZZ"]
["1154","SDNDATD","Dernier inventaire début"]
["1155","SDNDATF","Dernier inventaire fin","20991231"]
["1156","SDNMIND","Stock minimal début"]
["1157","SDNMINF","Stock minimal fin","99999999.999999"]
["1158","SDNMAXD","Stock maximal début"]
["1159","SDNMAXF","Stock maximal fin","99999999.999999"]
["1160","SDNARMD","Stock d'alarme début"]
["1161","SDNARMF","Stock d'alarme fin","99999999.999999"]
["1162","SDNNBJD","Rotation début"]
["1163","SDNNBJF","Rotation fin","99999999"]
["1164","SDNDELD","Délai réapprovisionnement début"]
["1165","SDNDELF","Délai réapprovisionnement fin","99999999"]
["1166","SDNETAD","Etat début","."]
["1167","SDNETAF","Etat fin","Z"]
["1168","SDNDCRD","Date de création début","19000101"]
["1169","SDNDCRF","Date de création fin","20991231"]
["1170","SDNUCRD","Créateur début","."]
["1171","SDNUCRF","Créateur fin","ZZZZZZZZZZZZZZZZZZZZZZZZZZZZZZ"]
["1172","SDNDDMD","Date de modification début"]
["1173","SDNDDMF","Date de modification fin","20991231"]
["1174","SDNUDMD","Modificateur début"]
["1175","SDNUDMF","Modificateur fin","ZZZZZZZZZZZZZZZZZZZZZZZZZZZZZZ"]
["1176","SDNMNED","Mnémonique début"]
["1177","SDNMNEF","Mnémonique fin","ZZZZZZZZZZ"]
["1178","SDNGCOD","Gestion des contenants","."]
["1179","SDNGCOF","Gestion des contenants","Z"]
["1180","SDNTSED","Taux de service début"]
["1181","SDNTSEF","Taux de service fin","100.00"]
["1182","SDNOSTD","Objectif stock début"]
["1183","SDNOSTF","Objectif stock fin","ZZZZ"]
["1184","SDNCLAD","Classement quantité début"]
["1185","SDNCLAF","Classement quantité fin","ZZZZZZZZ"]
["1186","SDNCLVD","Classement valeur début"]
["1187","SDNCLVF","Classement valeur fin","ZZZZZZZZ"]
["1188","SDNCLLD","Classement nb de lignes début"]
["1189","SDNCLLF","Classement nb de lignes fin","ZZZZZZZZ"]
["1190","SDNIAPD","Réapprovisionnement automatique début","."]
["1191","SDNIAPF","Réapprovisionnement automatique fin","Z"]
["1192","SDNMAPD","Méthode début"]
["1193","SDNMAPF","Méthode fin","ZZ"]
["1194","SDNQRFD","Quantité en stock comparée à début"]
["1195","SDNQRFF","Quantité en stock comparée à fin","ZZZ"]
["1196","SDNQAPD","Quantité de réapprovisionnement début"]
["1197","SDNQAPF","Quantité de réapprovisionnement fin","ZZZ"]
["1198","SDNINFD","Informations début"]
["1199","SDNINFF","Informations fin","zzzzzzzzzzzzzzzzzzzzzzzzzzzzzzzzzzzzzzzzzzzzzzzzzzzzzzzzzzzzzzzzzzzzzzzzzzzzzzzzzzzzzzzzzzzzzzzzzzzzzzzzzzzzzzzzzzzzzzzzzzzzzzzzzzzzzzzzzzzzzzzzzzzzzzzzzzzzzzzzzzzzzzzzzzzzzzzzzzzzzzzzzzzzzzzzzzzzzzzzzzzzzzzzzzzzzzzzzzzzzzzzzzzzzzzzzzzzzzzz"]
["1200","SDNTYPD","Type début"]
["1201","SDNTYPF","Type fin","ZZ"]
["1202","SDNNATD","Nature début"]
["1203","SDNNATF","Nature fin","ZZ"]
["1204","SDNGEND","Genre début"]
["1205","SDNGENF","Genre fin","ZZ"]
["1206","SDNROLD","Rôle début"]
["1207","SDNROLF","Rôle fin","Z"]
["1208","SDNDPLD","Dépôt livreur début"]
["1209","SDNDPLF","Dépôt livreur fin","ZZZZZZ"]